{"text_format":"1","workbook":"xlsx","n_sheets":16,"sheets":["INSTRUCCIONES","AUX","Form. Apertura Caja Ahorro PN","Doc entregados al cliente","Doc entregados al cliente Web","Form.PEP","Titular 2 o firmante BJunior","Form.PEP_Titular2","Titular 3 o firmante BJunior","Form.PEP_Titular3","Titular 4 y demás cotitulares","Form.PEP_Titular4","Titular 5 y demás cotitulares","Form.PEP_Titular5","Titular 6 y demás cotitulares","Form.PEP_Titular6"],"not_rendered":{"charts":0,"images":8,"macros":1,"external_links":0,"defined_names":30,"comments":2,"pivot_tables":0},"unopened":[],"bounds":{"document_bytes":16777216,"sheet_cells":100000,"rows_first":2000,"rows_last":500,"rows_between":2000,"halvings":0,"cell_chars":16384,"cell_head_chars":4096},"cells_cut":0,"cells_raw":0,"read":"whole","date_system":"1900"}

{"sheet":"INSTRUCCIONES","index":0,"n_rows":86,"n_cols":45,"rows_kept":86,"cut":false,"hidden":false,"merged":[[17,1,17,19],[18,0,18,20],[26,9,26,15],[20,0,20,20],[23,1,23,20],[22,0,22,7],[32,0,32,8],[29,0,29,8],[29,9,29,16],[30,0,30,8],[32,9,32,15],[64,0,64,7],[64,10,64,11],[64,12,64,14],[83,1,83,20],[84,1,84,20],[0,5,0,20],[9,1,9,20],[13,18,13,19],[10,0,10,20],[16,0,16,20],[14,1,14,20],[5,0,5,20],[4,1,4,20],[6,0,6,20],[7,0,7,20],[8,0,8,20],[15,0,15,18],[11,18,11,19],[1,0,1,20],[2,1,2,11],[3,1,3,11],[11,0,11,17],[12,0,13,17],[3,13,3,16],[33,0,33,8],[30,9,30,15],[25,0,25,8],[31,0,31,8],[31,9,31,16],[85,1,85,20],[55,0,55,7],[53,13,53,14],[57,0,57,20],[58,12,58,14],[58,16,58,20],[59,10,59,11],[59,12,59,14],[65,0,65,20],[66,0,66,7],[66,10,66,11],[66,16,66,20],[72,0,72,7],[73,0,73,7],[78,0,78,20],[81,1,81,20],[82,1,82,20],[80,1,80,20],[77,15,77,20],[42,7,42,20],[45,7,45,12],[45,13,45,16],[45,17,45,20],[43,0,43,6],[43,7,43,20],[53,16,53,17],[63,0,63,7],[62,0,62,7],[52,13,52,14],[46,0,46,6],[46,7,46,15],[46,16,46,17],[46,18,46,20],[44,0,44,6],[44,7,44,20],[71,0,71,20],[45,0,45,6],[42,0,42,6],[74,0,74,20],[75,10,75,11],[75,16,75,20],[75,0,75,7],[62,16,62,20],[63,10,63,11],[53,0,53,7],[54,0,54,7],[51,13,51,14],[58,0,58,7],[59,0,59,7],[59,16,59,20],[62,10,62,11],[63,12,63,14],[63,16,63,20],[53,18,53,20],[51,0,51,7],[51,16,51,20],[52,0,52,7],[64,16,64,20],[67,16,67,20],[76,0,76,7],[76,10,76,11],[76,12,76,20],[77,10,77,11],[77,12,77,14],[41,7,41,8],[60,0,60,20],[62,12,62,14],[61,0,61,20],[67,10,67,11],[56,0,56,20],[47,1,47,20],[48,0,48,20],[49,0,49,20],[50,0,50,7],[50,10,50,11],[58,10,58,11],[50,13,50,14],[50,16,50,20],[69,16,69,20],[68,16,68,20],[70,16,70,20],[41,11,41,12],[41,13,41,14],[41,0,41,6],[34,0,34,8],[27,9,27,16],[37,0,37,7],[22,8,22,20],[21,0,21,7],[21,8,21,20],[34,9,34,15],[19,1,19,20],[28,0,28,8],[28,9,28,15],[25,9,25,16],[26,0,26,8],[41,9,41,10],[41,16,41,17],[41,18,41,20],[37,8,37,20],[33,9,33,16],[27,0,27,8],[24,0,24,20],[40,0,40,20],[39,0,39,7],[39,8,39,10],[36,0,36,20]]}
[null,null,null,null,null,null,null,null,null,null,null,null,null,null,null,null,null,null,null,null,null,null,null,null,33]
["INSTRUCCIONES GENERALES\nEste documento denominado \"INSTRUCCIONES\", es el documento donde se efectúa la carga preliminar de la información para la apertura de cuenta. Este documento es complementario a la normativa vigente para el proceso de Apertura de Cuenta.  \n\nEl llenado del formulario debe realizarse en el orden establecido según los pasos descritos a continuación:",null,null,null,null,null,null,null,null,null,null,null,null,null,null,null,null,null,null,null,null,1,null,1,1,1,1,1,1,1,1,1,1,1,1,1,1,1,1,1,1,1,1,1,1]
["1. \n\n","ANTES DE USAR EL FORMULARIO PRESIONE EL BOTON BORRAR DATOS "]
["2.","Seleccionar el tipo de Apertura de Cuenta realizada por el cliente:\n(Identificar si es apertura \"Nueva\" o \"Adicional\")\n\n\n",null,null,null,null,null,null,null,null,null,null,null,{"$f":"IF(M4=\"Adicional\",\"¿La primera o anterior cuenta se aperturó posterior o el 12/06/2024?\",\"\")","v":""},null,null,null,null,null,null,null,null,null,null,{"$f":"IF(M4=\"Nueva\",\"N\",\"A\")","v":"A"}]
["3.","Realice la apertura de la cuenta solicitada, la misma puede ser mediante:\n",null,null,null,null,null,null,null,null,null,null,null,null,null,null,null,null,null,null,null,null,"SPOOL "]
["APERTURA POR STI: ",null,null,null,null,null,null,null,null,null,null,null,null,null,null,null,null,null,null,null,null,1]
["Realice el proceso de apertura completo en el STI (con servicios adicionales). Ingrese por el Fiserv (AS400) y copie las pantallas en los espacios azul y amarillo del costado derecho del formulario. "]
["APERTURA POR FISERV (AS400): "]
["Realice el proceso de apertura completo (Sin servicios adicionales)  y copie las pantallas en los espacios azul y amarillo del costado derecho del formulario. "]
["4.","Realice la diligencia adicional al cliente y seleccione las respuestas en las listas desplegables (espacios amarillos). Si alguna respuesta fuera \"SI\" entregue al cliente el formulario adicional FATCA que corresponda, según lo establecido en el Manual de Operaciones."]
["DILIGENCIA ADICIONAL: \n(Para BISA JUNIOR dejar estos espacios en BLANCO y completar las hojas de excel \"Titular  2-Firmante BJ\" y/o \"Titular 3-Firmante BJ\" para padre y/o madre o tutor). "]
["¿Es portador de tarjeta verde, pasaporte norteamericano, nacido o hijo de ciudadano de los Estados Unidos de Norteamérica?"]
["¿Ha permanecido más de 180 días en un año o promedio de 120 días al año durante los últimos 3 años en los Estados Unidos de Norteamérica?"]
[]
["5.","Realice la consulta de información adicional al cliente y en caso de identificarlo como persona PEP, seleccionar la opción que corresponda de la lista desplegable (espacio amarillo), previa consulta al consumidor financiero. Inmediatamente se mostrará el formulario PEP para que sea completado. "]
["INFORMACIÓN ADICIONAL DE CLIENTE PEP: Seleccionar la opción que corresponda (SÍ / NO) previa consulta al consumidor financiero:\n- En caso de que el consumidor financiero declare NO ser PEP, dejar la fila 17 en BLANCO.\n- Para BISA JUNIOR seleccionar la opción NO, dejar la fila 17 en BLANCO y completar las hojas de excel \"Titular  2-Firmante BJ\" y/o \"Titular 3-Firmante BJ\" para padre y/o madre o tutor). ",null,null,null,null,null,null,null,null,null,null,null,null,null,null,null,null,null,null,"PEP:",{"$f":"INSTRUCCIONES!Y31","v":""},null,null,null,{"$f":"TRIM(IF(AUX!B5=\"\",\"\",AUX!B5))","v":""}]
[null,null,null,null,null,null,null,null,null,null,null,null,null,null,null,null,null,null,null,null,null,null,null,null,{"$f":"IF(AUX!B29=\"\",AUX!B6,AUX!B29)","v":""}]
["6.","Realice la consulta de retenciones judiciales. \n - Seleccionar la opción que corresponda (SÍ / NO) referente a la existencia de retención judicial. \n   * Para BISA JUNIOR seleccionar la opción NO."]
[{"$f":"\"No obstante de que el Banco me informó sobre los efectos de la(s) retención(es) judicial(es) que pesa(n) sobre mi persona, solicito proceder con la apertura de cuenta, bajo mi entera y absoluta responsabilidad.\"","v":"No obstante de que el Banco me informó sobre los efectos de la(s) retención(es) judicial(es) que pesa(n) sobre mi persona, solicito proceder con la apertura de cuenta, bajo mi entera y absoluta responsabilidad."}]
["7.","Complete los datos del conyugue en caso de ser necesario, previa consulta con el cliente. "]
["INFORMACIÓN ADICIONAL DEL ESPOSO(A), CÓNYUGE, CONCUBINO(A) o CONVIVIENTE:",null,null,null,null,null,null,null,null,null,null,null,null,null,null,null,null,null,null,null,null,null,null,null,{"$f":"TRIM(IF(AUX!B7=\"\",AUX!B30,AUX!B7))","v":"NO APLICA"}]
["Nombre del cónyuge, (si corresponde):"]
["CAEDEC de la Actividad Económica u Ocupación Principal:",null,null,null,null,null,null,null,null,null,null,null,null,null,null,null,null,null,null,null,null,null,null,null,{"$f":"TRIM(IF(AUX!B14=\"\",AUX!B36,AUX!B14))","v":""}]
["8.","Para CUENTAS COLECTIVAS (indistinta o conjunta) se debe registrar la siguiente información de los cotitulares y completar además la información de los anexos \"Titular 2-Firmante BJ\" y/o \"Titular 3-Firmante BJ\", según corresponda. \nPara BISA JUNIOR se debe registrar la información del padre y/o madre o tutor del menor en las pestañas \"Titular 2 - Firmante BJunior\" y/o \"Titular 3 - Firmante BJunior\".",null,null,null,null,null,null,null,null,null,null,null,null,null,null,null,null,null,null,null,null,null,null,{"$f":"TRIM(IF(AUX!B15=\"\",AUX!B37,AUX!B15))","v":""}]
["INFORMACIÓN ADICIONAL DE LOS COTITULARES:"]
["Nombre Titular 2 o firmante Bisa Junior (según corresponda):"]
["Documento de identidad y extensión Titular 2 o firmante:"]
["Nombre Titular 3 o firmante Bisa Junior (según corresponda):"]
["Documento de identidad y extensión Titular 3 o firmante:"]
["Nombre Titular 4 o firmante:"]
["Documento de identidad y extensión Titular 4 o firmante:",null,null,null,null,null,null,null,null,null,null,null,null,null,null,null,null,null,null,null,null,null,null,null,{"$f":"TRIM(IF(AUX!B20=\"\",AUX!B42,AUX!B20))","v":""}]
["Nombre Titular 5 o firmante:",null,null,null,null,null,null,null,null,null,null,null,null,null,null,null,null,null,null,null,null,2]
["Documento de identidad y extensión Titular 5 o firmante:"]
["Nombre Titular 6 o firmante:"]
["Documento de identidad y extensión Titular 6 o firmante:"]
["9.","Complete manualmente  los siguientes datos del cliente:"]
["SI EL CLIENTE PERSONA NATURAL TIENE NIT (Adjuntar la certificación electrónica vigente del NIT).\n(*) Si el NIT corresponde a Régimen General completar la siguiente información, caso contrario dejar el espacio en blanco."]
["(*) Si el NIT corresponde a Régimen General confirmar con el cliente: "]
["SI EL CLIENTE ES UNA EMPRESA UNIPERSONAL, completar de manera OBLIGATORIA lo siguiente:"]
["Matrícula de Comercio (para Empresa Unipersonal) N°: "]
["DATOS DE LA CUENTA Y DEL CLIENTE"]
["Tipo de cuenta:",null,null,null,null,null,null,null,null,"Moneda:",null,null,null,"Producto:",null,null,"Administración de la cuenta:",null,null,null,null,null,null,null,{"$f":"IF(H42=\"CUENTA CORRIENTE\",\"Corriente\",IF(H42=\"CAJA DE AHORRO\",\"Ahorro\",\"\"))","v":""}]
["Motivo de la Apertura de Cuenta:"]
["Actividad Económica u Ocupación Principal y Ocupaciones Secundarias:"]
["Domicilio Laboral:"]
["Nivel de Ingresos o Promedio de Ingresos Mensuales:",null,null,null,null,null,null,null,null,null,null,null,null,"Año de ingreso al lugar de trabajo/ Inicio de actividad económica:",null,null,null,"DD/MM/AAAA"]
["Referencia personal:\nNombre(s) y Apellido(s):",null,null,null,null,null,null,null,null,null,null,null,null,null,null,null,"Teléfono:"]
["10.","Según los servicios que el cliente acepte, completar el proceso en el sistema CMS, e-Bisa, e-Bisa+, Bisa Seguros y \"PC Legal - Guardián\"."]
["SERVICIOS ADICIONALES \nÚnicamente se mostrarán en el formulario los servicios seleccionados con la opción \"SI\" por el cliente\nSi la cuenta es CONJUNTA automáticamente no se mostrarán los servicios adicionales para el cliente."]
["TARJETA DE DÉBITO:  "]
[{"$f":"IF(M4=\"Nueva\",\"Tarjeta de débito para consumo local: \n(sólo persona natural)\",IF(AND(M4=\"Adicional\",R4=\"SI\"),\"Tarjeta de débito para consumo local: \n(sólo persona natural)\",\"Tarjeta de débito: \n(sólo persona natural)\"))","v":"Tarjeta de débito: \n(sólo persona natural)"},null,null,null,null,null,null,null,null,null,"Tarjeta No:\n(solo ultimos 4 dígitos) ",null,null,null,null,null,{"$f":"IF(AUX!A1>=76,MID(AUX!B43,1,20),IF(AUX!A1<76,MID(AUX!B21,1,20),\"\"))","v":""}]
["Seguro de protección tarjetahabientes y forma de pago de la prima: ",null,null,null,null,null,null,null,null,null,null,null,"Tarjeta Nominada:",null,null,"Nombre para la nominación:"]
["Habilitación para uso en el exterior",null,null,null,null,null,null,null,null,null,"Desde:",null,null,"Hasta:"]
["Modificación de límite diario para compras por Internet",null,null,null,null,null,null,null,null,null,"Desde:",null,null,"Hasta:",null,null,"Monto (Bs.):\nLímite Diario"]
["Deshabilitación para compras por Internet"]
["Ampliación de límite diario para transacciones ATM",null,null,null,null,null,null,null,null,null,"Monto límite (Bs.):"]
["Seleccionar la afiliación del cliente a la banca digital, ya sea e-Bisa o e-Bisa Móvil o e-Bisa+ y e-Bisa Móvil+ y completar únicamente los campos correspondientes a la banca seleccionada: "]
["e-BISA Y e-BISA MÓVIL"]
["Banca Electrónica por internet e-Bisa y todos sus servicios adicionales: \n(Habilitar los servicios electrónicos en el sistema)",null,null,null,null,null,null,null,null,null,"Usuario(s) login: ",null,null,null,null,"Límite diario de movimiento(Bs):"]
["No Tarjeta de coordenadas / Token: ",null,null,null,null,null,null,null,null,null,"Tipo de usuario:",null,null,null,null,"Selección del sistema para el registro de datos para el acceso a E-mail Token y/o SMS Token:"]
["e-BISA+ Y e-BISA MÓVIL+"]
["La afiliación al servicio habilita todas las funcionalidades del mismo y asocia todos los productos activos del cliente a la fecha. En caso de requerir límites distintos por funcionalidad debe utilizar el Formulario de Afiliación e-Bisa+ PN"]
["Banca Electrónica por internet e-Bisa+ y e-Bisa Móvil+: \n(Habilitar los servicios electrónicos en el sistema)",null,null,null,null,null,null,null,null,null,"No celular para el servicio: ",null,{"$f":"IF(OR(I63=\"RECHAZO\",I63=\"NO APLICA\"),\"\",IF(AND(I63=\"NUEVA\",AUX!A1>=76),MID(AUX!B36,1,10),IF(AND(I63=\"NUEVA\",AUX!A1<76),MID(AUX!B14,1,20),IF(AND(I63=\"INCLUSIÓN\",AUX!A1>=76),MID(AUX!B36,1,10),IF(AND(I63=\"INCLUSIÓN\",AUX!A1<76),MID(AUX!B14,1,20),\"\")))))","v":""},null,null,"Correo electrónico: ",{"$f":"IF(OR(I63=\"RECHAZO\",I63=\"NO APLICA\"),\"\",IF(AND(I63=\"NUEVA\",AUX!A1>=76),MID(AUX!B37,1,37),IF(AND(I63=\"NUEVA\",AUX!A1<76),MID(AUX!B15,1,37),IF(AND(I63=\"INCLUSIÓN\",AUX!A1>=76),MID(AUX!B37,1,37),IF(AND(I63=\"INCLUSIÓN\",AUX!A1<76),MID(AUX!B15,1,37),\"\")))))","v":""}]
["Usuario(s) login: ",null,null,null,null,null,null,null,null,null,"Límite diario acumulado de todas las transacciones (Bs): ",null,"69.600.-",null,null,"Límite diario por cada funcionalidad (Bs):","10.000.-"]
["Dispositivo de Seguridad (login):",null,null,null,null,null,null,null,"Soft Token",null,"Dispositivo de Seguridad (Monetarias):",null,"Soft Token",null,null,"Dispositivo de Seguridad (No Monetarias):","Soft Token"]
["Chequera"]
["Solicitud de chequera:",null,null,null,null,null,null,null,null,null,"Cantidad de talonarios:",null,null,null,null,"Cantidad de Cheques:"]
[null,null,null,null,null,null,null,null,null,null,"No. de Cuenta:",null,null,null,null,"A nombre de:"]
[null,null,null,null,null,null,null,null,null,null,null,null,null,null,null,"Imprimir:"]
[null,null,null,null,null,null,null,null,null,null,"CI. de la persona a la que entrego:",null,null,null,null,"Entregar a:"]
[null,null,null,null,null,null,null,null,null,null,"NIT factura:",null,null,null,null,"Factura emitida a nombre de:"]
["SEGUROS"]
["Seguro de Vida:"]
["Seguro Renta Hospitalaria:"]
["GENERACIÓN DEL CÓDIGO QR"]
["Número de cuenta a acreditar:",null,null,null,null,null,null,null,{"$f":"IF(AUX!A1>=76,MID(AUX!B43,1,20),IF(AUX!A1<76,MID(AUX!B21,1,20),\"\"))","v":""},null,"Tipo de pago: ",null,null,null,null,"Moneda: "]
["Monto: \n(completar solo si se elige \"monto fijo\", caso contrario registrar \"0\")",null,null,null,null,null,null,null,null,null,"Concepto: "]
[null,null,null,null,null,null,null,null,null,null,"Periodo de Validez: ",null,null,null,null,"del 15 de febrero al 28 de febrero."]
["UBICACIÓN"]
["Lugar: "]
["11.","PRESIONAR OBLIGATORIAMENTE EL BOTÓN DE EXTRACCIÓN PARA MIGRAR Y VALIDAR LA INFORMACIÓN:"]
["12.","Siga los siguientes enlaces para la impresión de Reglamentos:"]
[null,"Reglamento Interno de Caja de Ahorro, disponible en el punto \" REGLAMENTO INTERNO DE  CUENTAS DE CAJA DE AHORRO DEL BANCO BISA S.A.\"del Manual de Operaciones. (Pulse aquí para verlo e imprimirlo)."]
[null,"Reglamento Interno de Cuenta Corriente, disponible en el punto \"CUENTAS CORRIENTES\" del Manual de Operaciones. (Pulse aquí para verlo e imprimirlo)."]
[null,"Reglamento del Cheque y Cartilla de uso,  disponible en el  punto \"ENTREGA DE CHEQUERAS\" del Manual de Operaciones. (Pulse aquí para verlo e imprimirlo)."]
["13.","Finalmente arme la carpeta del cliente con los documentos señalados en el Manual de Operaciones, correspondiente al Procedimiento para abrir cuenta corriente o caja de ahorros."]

{"sheet":"AUX","index":1,"n_rows":49,"n_cols":12,"rows_kept":49,"cut":false,"hidden":true,"merged":[[24,0,26,0],[15,0,17,0],[37,0,39,0],[1,0,1,3],[23,0,23,3]]}
[{"$f":"LEN(INSTRUCCIONES!W14)","v":0},null,null,null,"PEP","Declaro tener o haber tenido en los últimos 5 años un cargo prominente en alguna entidad pública y/o del Estado o Empresas o Corporaciones estatales (Ej. Ministros, Alcaldes, Senadores, Gobernadores, Gerentes, Directores, Jefes de Unidad, Embajador, Diplomático, etc.).  "]
["APERTURA PERSONA NATURAL",null,null,null,null,"Declaro ser o haber sido una figura prominente de algún partido político o ejecutivo de jerarquía de organizaciones que pertenezcan al Estado."]
["Nombre / Razón Social",{"$f":"IF(A1<76,MID(INSTRUCCIONES!W14,22,500),\"\")","v":""},"Lugar de nacimiento",{"$f":"IF(A1<76,MID(INSTRUCCIONES!W18,18,20),\"\")","v":""},null,"Declaro haber desempeñado funciones prominentes como director, subdirector, miembro de la junta o cargos similares dentro de una organización internacional."]
["Documento de Identidad",{"$f":"IF(A1<76,MID(INSTRUCCIONES!W16,9,20),\"\")","v":""},"Fecha de nacimiento",{"$f":"MID(INSTRUCCIONES!W17,51,11)","v":""},null,"Declaro ser extranjero y haber cumplido o cumplir funciones públicas prominentes en otro país (Ej. Jefes de Estado/Gobierno, políticos de alto nivel, ejecutivo de alto nivel de corporaciones estatales, etc.)"]
["NIT",{"$f":"IF(A1<76,MID(INSTRUCCIONES!W16,52,300),\"\")","v":""},null,null,null,"Declaro ser familiar de una persona PEP hasta el segundo grado de consanguinidad, segundo de afinidad o derivado de los vínculos de adopción."]
["Tipo de Persona",{"$f":"MID(INSTRUCCIONES!W17,18,8)","v":""},null,null,null,"Declaro ser una persona cercana a una persona considerada PEP (conocida o realiza operaciones bancarias y/o comerciales por montos considerables de dinero en nombre de esta persona)."]
["Estado Civil",{"$f":"IF(A1<76,MID(INSTRUCCIONES!W19,52,40),\"\")","v":""},null,null,null,"Declaro ser socio comercial, socio de negocios o una Empresa (persona jurídica)  en la que una persona considerada PEP goza de una posición de control administrativo accionario o un interés económico."]
["Actividad Económica u Ocupación Principal",{"$f":"MID(INSTRUCCIONES!H44,1,500)","v":""},null,null,null,"Lugar","Preguntas","Documento de Identidad","NIT PN","Tipo de Cuenta","Moneda","Adm Cta"]
["Nacionalidad",{"$f":"IF(A1<76,MID(INSTRUCCIONES!W18,52,100),\"\")","v":""},null,null,null,"LA PAZ","SI","CBE","aún así, solicito y autorizo al Banco efectuar la retención del RC IVA (13%) sobre los intereses que percibo en mi(s) cuenta(s). ","CAJA DE AHORRO","BOLIVIANOS","UNIPERSONAL"]
["Profesión u Ocupación",{"$f":"IF(A1<76,MID(INSTRUCCIONES!W42,23,200),\"\")","v":""},null,null,null,"COCHABAMBA","NO","CCB","sin embargo no registro como actividad principal o secundaria la “Colocación de capitales no mayores a 3 años (intereses, rendimientos, etc)”, por lo que soy responsable de la declaración y pago de los impuestos ante el SIN por percibir intereses en mi(s) cuenta(s).","CUENTA CORRIENTE","DÓLARES ESTADOUNIDENSES","INDISTINTA"]
["Lugar de Trabajo",{"$f":"IF(A1<76,MID(INSTRUCCIONES!W40,35,300),\"\")","v":""},"Completar lugar de Trabajo",{"$f":"IF(B11=\"\",\"NO APLICA\",B11)","v":"NO APLICA"},null,"SANTA CRUZ",null,"CCH",null,null,"EUROS","CONJUNTA"]
["Cargo",{"$f":"IF(A1<76,MID(INSTRUCCIONES!W41,8,500),\"\")","v":""},"Completar cargo",{"$f":"IF(B12=\"\",\"NO APLICA\",B12)","v":"NO APLICA"},null,"TARIJA",null,"CLP"]
["Teléfono Fijo",{"$f":"IF(A1<76,MID(INSTRUCCIONES!W21,16,9),\"\")","v":""},null,null,null,"SUCRE ",null,"COR"]
["Teléfono Celular",{"$f":"IF(INSTRUCCIONES!I92=\"RECHAZO\",\"\",IF(AUX!A1<76,MID(INSTRUCCIONES!W21,33,15),\"\"))","v":""},null,null,null,"ORURO",null,"CPA"]
["Correo electrónico",{"$f":"TRIM(IF(A1<76,MID(INSTRUCCIONES!W22,9,41),\"\"))","v":""},"Completar correo electrónico",{"$f":"IF(B15=\"\",\"NO TIENE\",B15)","v":"NO TIENE"},null,"POTOSI",null,"CPO"]
["Dirección Domicilio",{"$f":"IF(A1<76,MID(INSTRUCCIONES!W25,1,500),\"\")","v":""},"Dirección Laboral",{"$f":"IF(INSTRUCCIONES!H45=\"\",\"NO APLICA\",INSTRUCCIONES!H45)","v":"NO APLICA"},null,"BENI ",null,"CSC"]
[null,{"$f":"IF(A1<76,MID(INSTRUCCIONES!W24,1,500),\"\")","v":""},null,null,null,"PANDO",null,"CTJ"]
[null,{"$f":"CONCATENATE(B17, \"     \",B16)","v":"     "},null,null,null,"EL ALTO",null,"PAS"]
["País de Residencia",{"$f":"IF(A1<76,MID(INSTRUCCIONES!W27,9,300),\"\")","v":""},null,null,null,null,null,"CEE"]
["Cliente PEP",{"$f":"IF(A1<76,MID(INSTRUCCIONES!W28,40,100),\"\")","v":""},null,null,null,null,null,"CEX"]
["Número de Cuenta",{"$f":"IF(A1<76,MID(INSTRUCCIONES!W12,16,200),\"\")","v":""},null,null,"Tarjeta de Débito","Tarjeta de Débito",null,"DCR"]
["Agencia",{"$f":"IF(A1<76,MID(INSTRUCCIONES!W37,19,35))","v":""},null,null,"NUEVA","NUEVA",null,"DCC"]
[null,null,null,null,"RECHAZO","ADICIONAL",null,"DCO"]
["APERTURA EMPRESA UNIPERSONAL",null,null,null,null,"INCLUSIÓN","Seguro","e-BISA","Banca por Celular","Tipo de Cuenta","Servicios Adicionales TD","Mod. Límite"]
["Nombre / Razón Social",{"$f":"IF(A1>=76,MID(INSTRUCCIONES!W14,22,500),\"\")","v":""},"Lugar de nacimiento","No Aplica",null,"RECHAZO","ACEPTA","NUEVA","NUEVA","CUENTA PRIMARIA","SI","GRP05 Bs.100"]
[null,{"$f":"IF(A1>=76,MID(INSTRUCCIONES!W15,1,200),\"\")","v":""},"Fecha de nacimiento","No Aplica",null,"RENOVACIÓN","RECHAZA","INCLUSIÓN","INCLUSIÓN","CUENTA SECUNDARIA","NO","GRP06 Bs.200.-"]
[null,{"$f":"CONCATENATE(B25,\" \",B26)","v":" "},null,null,null,"REPOSICIÓN","NO APLICA","RECHAZO","RECHAZO",null,"Nivel de Ingresos promedio","GRP07 Bs.400.-"]
["Documento de Identidad",{"$f":"IF(A1>=76,MID(INSTRUCCIONES!W17,52,300),\"\")","v":""},null,null,null,null,"YA TIENE SEGURO",null,"NO APLICA",null,"Hasta  Bs. 2.000.-","GRP08 Bs.500.-"]
["Tipo de Persona",{"$f":"IF(A1>=76,MID(INSTRUCCIONES!W18,18,8),\"\")","v":""},null,null,null,"Impresión Chequera","Tipo Apertura","Dispositivo de Seguridad e-Bisa+","Pago prima TD","Documento de Identidad","Bs. 2.001.- a 5.000.-","GRP09 Bs.600.-"]
["Estado Civil","NO APLICA",null,null,null,"Chequera con nombre","Nueva","Soft Token","MENSUAL","CBE","Bs. 5.001.- a 10.000.-","GRP20 Bs.1000.-"]
["Nacionalidad","NO APLICA",null,null,null,"Chequera con nombre y dirección","Adicional","SMS Token","ANUAL","CCB","Bs. 10.001.- a 15.000.-","GRP21 BS.1500.-"]
["Profesión u Ocupación","NO APLICA",null,null,null,"Tipo de Pago Generación QR",null,"Ambos (SMS Token y Soft Token)",null,"CCH","Bs. 15.001.- en adelante","GRP01 Bs.4400.-"]
["Lugar de Trabajo","NO APLICA",null,null,null,"Monto Fijo",null,"Tipo de usuario e-Bisa",null,"CLP","Producto","GRP26 Bs.5400.-"]
["Cargo","NO APLICA",null,null,null,"Monto Variable",null,"CONSULTAS",null,"COR","Cuenta Corriente","GRP28 Bs.8000.-"]
["Teléfono Fijo",{"$f":"IF(A1>=76,MID(INSTRUCCIONES!W22,16,9),\"\")","v":""},null,null,null,"Perido de Validez Generación QR",null,"CONTROLLER",null,"CPA","Bisa Gestión","GRP11 Bs.9000.-"]
["Teléfono Celular",{"$f":"IF(INSTRUCCIONES!I70=\"RECHAZO\",\"\",IF(AUX!A1>=76,MID(INSTRUCCIONES!W24,33,15),\"\"))","v":""},null,null,null,"Anual",null,"FIRMANTE",null,"CPO","Multi-Bisa Corriente","GRP04 Bs.14000.-"]
["Correo electrónico",{"$f":"TRIM(IF(A1>=76,MID(INSTRUCCIONES!W23,9,41),\"\"))","v":""},null,null,null,"Mensual",null,"APROBADOR",null,"CSC","Libreta de Inversión","GRP02 Bs.18000.-"]
["Dirección Domicilio",{"$f":"IF(A1>=76,MID(INSTRUCCIONES!W25,1,100),\"\")","v":""},"Dirección Laboral","No Aplica",null,"Semanal",null,"Sistema registro Email/Token",null,"CTJ","Ahorro Plus","GRP03 Bs.27000.-"]
[null,{"$f":"IF(A1>=76,MID(INSTRUCCIONES!W26,1,200),\"\")","v":""},null,null,null,"Otro",null,"Sistema Fiserv (asociar número de cliente)",null,"CSE","Bisa Activa Clásica","GRP10 Bs.71400.-"]
[null,{"$f":"CONCATENATE(B39, \"     \",B38)","v":"     "},null,null,null,null,null,"Sistema Código Bisa",null,"CEE","Nueva Bisa Activa",".-----------------"]
["País de Residencia","NO APLICA",null,null,null,null,null,null,null,"CEX","Multi-Bisa Ahorro"]
["Cliente PEP",{"$f":"IF(A1>=76,MID(INSTRUCCIONES!W29,40,100),\"\")","v":""},null,null,null,null,null,null,null,"CTA","Bisa Junior"]
["Número de Cuenta",{"$f":"IF(A1>=76,MID(INSTRUCCIONES!W12,16,200),\"\")","v":""},null,null,null,null,null,null,null,"CTB","Bisa Neo"]
["Agencia",{"$f":"IF(A1>=76,MID(INSTRUCCIONES!W40,19,35))","v":false},null,null,null,null,null,null,null,"CTC"]
[null,null,null,null,null,null,null,null,null,"CTD"]
[null,null,null,null,null,null,null,null,null,"DCD"]
[null,null,null,null,null,null,null,null,null,"DCR"]
[null,null,null,null,null,null,null,null,null,"DCC"]
[null,null,null,null,null,null,null,null,null,"DCO"]

{"sheet":"Form. Apertura Caja Ahorro PN","index":2,"n_rows":141,"n_cols":28,"rows_kept":141,"cut":false,"hidden":false,"merged":[[147,17,147,20],[96,0,96,20],[106,0,106,20],[108,4,108,7],[111,10,114,12],[111,15,114,19],[117,1,117,7],[116,15,116,19],[83,0,83,7],[140,12,140,19],[139,1,140,10],[116,1,116,7],[118,1,118,7],[118,15,118,19],[129,1,129,7],[111,1,114,7],[108,15,108,17],[130,1,130,7],[128,1,128,7],[128,9,128,13],[129,9,129,13],[130,9,130,13],[128,15,128,19],[130,15,130,19],[16,27,16,32],[16,24,16,26],[60,8,60,9],[62,8,62,9],[37,0,37,20],[60,16,60,20],[16,9,16,20],[50,12,50,13],[46,0,46,20],[57,0,57,20],[36,0,36,16],[19,0,19,20],[43,0,43,20],[45,0,45,7],[45,8,45,20],[27,0,27,20],[53,0,53,20],[30,0,30,20],[28,0,28,20],[56,0,56,20],[60,0,60,7],[44,0,44,7],[35,0,35,16],[26,0,26,20],[0,5,0,20],[0,0,0,4],[50,8,50,10],[47,8,47,10],[60,14,60,15],[13,5,13,20],[15,0,15,20],[16,0,16,4],[17,0,17,4],[17,5,17,20],[16,5,16,8],[48,8,48,10],[51,8,51,20],[12,0,12,4],[23,0,23,20],[25,0,25,20],[35,17,35,20],[36,17,36,20],[60,11,60,13],[52,0,52,20],[39,0,39,20],[7,0,7,4],[7,5,7,20],[22,0,22,20],[1,11,1,16],[1,17,1,20],[1,0,1,10],[6,0,6,4],[2,0,2,4],[3,0,3,4],[6,5,6,20],[2,5,2,20],[3,12,3,20],[5,0,5,4],[3,10,3,11],[3,5,3,9],[5,5,5,7],[5,8,5,9],[5,10,5,11],[5,12,5,14],[5,15,5,20],[4,0,4,4],[4,5,4,9],[4,10,4,11],[4,12,4,20],[8,0,8,4],[8,5,8,11],[8,13,8,20],[20,0,20,20],[21,0,21,20],[12,5,12,20],[13,0,13,4],[18,0,18,20],[11,0,11,4],[10,0,10,4],[10,5,10,10],[10,11,10,15],[10,16,10,20],[11,11,11,20],[11,9,11,10],[11,5,11,8],[9,0,9,4],[9,5,9,20],[14,0,14,4],[14,5,14,11],[14,13,14,20],[44,8,44,20],[31,0,31,20],[24,0,24,20],[34,0,34,20],[40,0,40,20],[29,0,29,20],[42,0,42,20],[62,11,62,13],[58,0,58,20],[59,0,59,20],[49,8,49,10],[32,0,32,20],[47,11,47,13],[47,14,47,20],[33,0,33,20],[64,8,64,9],[64,11,64,13],[66,8,66,9],[66,11,66,13],[70,8,70,9],[88,11,88,13],[88,14,88,20],[95,2,95,10],[104,0,104,20],[82,0,82,20],[94,2,94,10],[78,16,78,20],[70,0,70,6],[77,0,77,20],[80,0,80,7],[80,8,80,9],[80,11,80,13],[76,0,76,20],[79,11,79,13],[79,16,79,20],[78,0,78,7],[78,8,78,9],[78,11,78,13],[86,8,86,9],[132,16,132,20],[74,8,74,9],[93,16,93,20],[92,17,92,19],[83,8,83,9],[84,0,84,7],[84,8,84,9],[107,0,107,20],[89,16,89,20],[74,0,74,7],[92,2,93,10],[80,16,80,20],[105,0,105,20],[79,6,79,7],[79,8,79,9],[85,0,85,20],[86,0,86,7],[86,16,86,20],[87,0,87,7],[108,13,108,14],[87,8,87,9],[86,11,86,13],[87,11,87,20],[116,9,116,13],[117,9,117,13],[118,9,118,13],[117,15,117,19],[129,15,129,19],[74,11,74,13],[66,0,66,6],[66,16,66,20],[74,16,74,20],[71,11,71,13],[72,0,72,20],[68,0,68,6],[68,8,68,9],[71,8,71,9],[75,11,75,13],[75,16,75,20],[97,0,97,20],[98,0,98,20],[99,0,99,20],[100,0,100,20],[101,0,101,20],[102,0,102,20],[103,0,103,20]]}
[]
["DATOS DEL CLIENTE:",null,null,null,null,null,null,null,null,null,null,{"$f":"IF(AUX!A1<76,MID(AUX!B22,1,35),MID(AUX!B44,1,35))","v":""},null,null,null,null,null,{"$f":"NOW()","v":45929.467308449071}]
["Nombre Solicitante (Titular)/ Razón Social :",null,null,null,null,{"$f":"IF(AUX!A1<76,MID(AUX!B3,1,100),MID(AUX!B27,1,100))","v":""}]
["Documento de identidad o\n NIT (solo para Emp.Unipersonal):",null,null,null,null,{"$f":"IF(AND(AUX!B6=\"JURIDICO\",AUX!A1<76),MID(AUX!B5,1,30),IF(AND(AUX!B6=\"JURIDICO\",AUX!A1>=76),MID(AUX!B28,1,30),IF(AND(AUX!B6=\" PERSONA\",AUX!A1<76),MID(AUX!B4,1,30),IF(AND(AUX!B6=\" PERSONA\",AUX!A1>=76),MID(AUX!B28,1,30),IF(AND(AUX!B29=\"JURIDICO\",AUX!A1<76),MID(AUX!B5,1,30),IF(AND(AUX!B29=\"JURIDICO\",AUX!A1>=76),MID(AUX!B28,1,30),\"\"))))))","v":""},null,null,null,null,"Matrícula de Comercio (Solo Emp. Unipersonal):",null,{"$f":"MID(INSTRUCCIONES!I40,1,40)","v":""}]
["Fecha de nacimiento:",null,null,null,null,{"$f":"IF(AUX!A1<76,AUX!D4,AUX!D26)","v":""},null,null,null,null,"Lugar de nacimiento:",null,{"$f":"IF(AUX!A1<76,AUX!D3,AUX!D25)","v":""}]
["Estado civil: ",null,null,null,null,{"$f":"IF(AND(M4=\"\",AUX!A1<76),MID(AUX!B7,1,200),MID(AUX!B30,1,200))","v":""},null,null,"Nacionalidad:",null,{"$f":"IF(AND(M4=\"\",AUX!A1<76),MID(AUX!B9,1,200),MID(AUX!B31,1,200))","v":""},null,"País de Residencia:",null,null,{"$f":"IF(AND(M4=\"\",AUX!A1<76),MID(AUX!B19,1,200),MID(AUX!B41,1,200))","v":""}]
["Profesión/ocupación : ",null,null,null,null,{"$f":"TRIM(IF(AND(M4=\"\",AUX!A1<76),MID(AUX!B10,1,200),MID(AUX!B32,1,100)))","v":""}]
["Actividad Económica u Ocupación Principal y Ocupaciones Secundarias:",null,null,null,null,{"$f":"MID(AUX!B8,1,500)","v":""}]
["Lugar de Trabajo:",null,null,null,null,{"$f":"IF(AND(AUX!B6=\"JURIDICO\",AUX!A1<76),MID(AUX!B33,1,300),IF(AND(AUX!B6=\"JURIDICO\",AUX!A1>=76),MID(AUX!B33,1,300),IF(AND(AUX!B6=\" PERSONA\",AUX!A1<76),MID(AUX!D11,1,300),IF(AND(AUX!B6=\" PERSONA\",AUX!A1>=76),MID(AUX!B33,1,300),IF(AND(AUX!B29=\"JURIDICO\",AUX!A1<76),MID(AUX!D11,1,300),IF(AND(AUX!B29=\"JURIDICO\",AUX!A1>=76),MID(AUX!B33,1,300),\"\"))))))","v":""},null,null,null,null,null,null,"Cargo:",{"$f":"IF(AND(AUX!B6=\"JURIDICO\",AUX!A1<76),MID(AUX!B34,1,300),IF(AND(AUX!B6=\"JURIDICO\",AUX!A1>=76),MID(AUX!B34,1,300),IF(AND(AUX!B6=\" PERSONA\",AUX!A1<76),MID(AUX!D12,1,300),IF(AND(AUX!B6=\" PERSONA\",AUX!A1>=76),MID(AUX!B34,1,300),IF(AND(AUX!B29=\"JURIDICO\",AUX!A1<76),MID(AUX!D12,1,300),IF(AND(AUX!B29=\"JURIDICO\",AUX!A1>=76),MID(AUX!B34,1,300),\"\"))))))","v":""}]
["Domicilio laboral: ",null,null,null,null,{"$f":"IF(AUX!A1<76,AUX!D16,AUX!D38)","v":"NO APLICA"}]
["Nivel de Ingreso o Ingreso Promedio Mensual",null,null,null,null,{"$f":"INSTRUCCIONES!H46","v":0},null,null,null,null,null,"Año de ingreso al Trabajo / Inicio de actividad económica: ",null,null,null,null,{"$f":"INSTRUCCIONES!R46","v":"DD/MM/AAAA"}]
[{"$f":"IF(OR(AUX!B6=\"JURIDICO\",AUX!B29=\"JURIDICO\"),\"Teléfono fijo o celular:\",\"Teléfono fijo:\")","v":"Teléfono fijo:"},null,null,null,null,{"$f":"IF(AUX!A1<76,MID(AUX!B13,1,100),MID(AUX!B35,1,100))","v":""},null,null,null,{"$f":"IF(A12=\"Teléfono fijo o celular:\",\"\",\"Teléfono celular:\")","v":"Teléfono celular:"},null,{"$f":"TRIM(IF(AND(AUX!B6=\"JURIDICO\",AUX!A1<76),\"\",IF(AND(AUX!B6=\"JURIDICO\",AUX!A1>=76),\"\",IF(AND(AUX!B29=\"JURIDICO\",AUX!A1>=76),\"\",IF(AND(AUX!B29=\"JURIDICO\",AUX!A1<76),\"\",IF(AND(AUX!B6=\" PERSONA\",AUX!A1<76),MID(AUX!B14,1,15),IF(AND(AUX!B6=\" PERSONA\",AUX!A1>=76),MID(AUX!B36,1,15),\"\")))))))","v":""}]
["Correo electrónico: ",null,null,null,null,{"$f":"IF(AUX!A1<76,MID(AUX!D15,1,35),MID(AUX!B37,1,30))","v":"NO TIENE"}]
["Domicilio: ",null,null,null,null,{"$f":"IF(AUX!A1<76,MID(AUX!B18,1,200),MID(AUX!B40,1,200))","v":"     "}]
[{"$f":"INSTRUCCIONES!A47","v":"Referencia personal:\nNombre(s) y Apellido(s):"},null,null,null,null,{"$f":"IF(INSTRUCCIONES!H47=\"\",\"\",INSTRUCCIONES!H47)","v":""},null,null,null,null,null,null,"Teléfono:",{"$f":"IF(INSTRUCCIONES!S47=\"\",\"\",INSTRUCCIONES!S47)","v":""}]
["INFORMACIÓN CORRESPONDIENTE AL NIT PARA EL CLIENTE PERSONA NATURAL: "]
["NIT: (Adjuntar certificación electronica vigente) ",null,null,null,null,{"$f":"IF(OR(AUX!B5=\"\",M4<>\"\"),\"NO APLICA\",MID(AUX!B5,1,100))","v":"NO APLICA"},null,null,null,null,null,null,null,null,null,null,null,null,null,null,null,null,null,null,null,null,null,{"$f":"MID(INSTRUCCIONES!I46,1,50)","v":""}]
["Mi NIT corresponde a Régimen General ",null,null,null,null,{"$f":"IF(INSTRUCCIONES!I38=\"\",\"\",INSTRUCCIONES!I38)","v":""}]
["AUTORIZACIONES"]
["El (La) (Los) titular(es) o apoderado(s) y para el caso de Bisa Junior el padre, madre o tutor(es) y para el menor titular de la cuenta, autoriza(mos) al Banco BISA S.A. a consultar en cualquier momento los datos en el Registro Único de Identificación administrado por el Servicio General de Identificación Personal (SEGIP) e instituciones y agencias de control y/o de supervisión así como de otras fuentes que estime necesarias.\n\n"]
["\nSólo en caso de requerir un sobregiro en cuenta corriente, el cliente autoriza al Banco a realizar la consulta en la Central de Información Crediticia (CIC) de la Autoridad de Supervisión del Sistema Financiero (ASFI), al informe confidencial del Buro de Información (BI) que corresponda.\n"]
["Autorizo al Banco BISA S.A. y acepto que me envien información por cualquiera de los datos referenciados en esta cuenta."]
["Yo (nosotros) como titular(es) de la cuenta en Euros, declaro(mos) haber recibido y comprendido la información proporcionada por Banco BISA S.A. respecto a las condiciones del manejo y retiro de fondos de la cuenta en Euros. Asimismo, manifiesto(amos) mi(nuestra) aceptación a los términos y condiciones establecidos por el Banco y confirmo(amos) haber tomado conocimiento de los mismos.\n"]
["DECLARACIONES Y AUTORIZACIONES POR SERVICIOS ADICIONALES"]
["Declaro que aún después de la explicación recibida por el personal del Banco respecto a las ventajas y beneficios del seguro de Protección de Tarjetas de Débito, de manera libre y voluntaria, sin que exista vicio o dolo en mi consentimiento, RECHAZO adherirme y/o afiliarme al seguro señalado anteriormente y ofertado por el Banco, para la Tarjeta citada seguidamente, liberando a éste de cualquier responsabilidad.\n\nAsumiendo así, cualquier evento que pudiera ocurrir a consecuencia de uso indebido de mi tarjeta de débito o tarjetas adicionales, y que pudieran ocasionar el uso de cualquier monto inclusive hasta el límite de compras en mi(s) cuenta(s) a las cual(es) se halla ligada la(s) tarjeta(s) de débito de mi propiedad.\n\nDeclaro tener conocimiento que el rechazo incluye la cobertura de:\n1. Cobertura contra Robo hasta Bs. 69.600.-\n2. Robo a consecuencia asalto y utilización forzada hasta Bs. 13.920.- por evento y Bs. 34.800.- anual.\n3. Robo a consecuencia de fraude por terceros hasta Bs. 13.920.- por evento y Bs. 34.800.- anual.\n4. Uso indebido de la tarjeta por terceros hasta Bs.69.600.-\n5. Clonación hasta Bs.69.600.-\n6. Secuestro para retiros hasta Bs. 34.800.- anual.\n7. Muerte accidental a consecuencia de asalto hasta Bs.69.600.-\n8. Invalidez Parcial o Total a consecuencia de asalto hasta Bs.69.600.-\n9. Reembolso de Gastos Médicos a consecuencia de asalto hasta Bs. 6.960.-\n10. Re - emisión de documentos hasta Bs. 1.740.-\n11. Hacking \n12. Contact Less\n13. Robo por transacciones fraudulentas en compras por internet.\n14. Cash Back, por hasta Bs. 300.-\n15. Traslado médico a consecuencia asalto o secuestro.  "]
["Declaro la afiliación al Seguro de Protección Integral de mi tarjeta de débito y autorizo en forma irrevocable al Banco para que efectúe el cobro de la prima mensual o anual, de la siguiente manera:\n"]
[{"$f":"\"El cobro se realizará mediante débito automático de la cuenta de caja de ahorro primaria establecida en mi tarjeta de débito.\"","v":"El cobro se realizará mediante débito automático de la cuenta de caja de ahorro primaria establecida en mi tarjeta de débito."}]
["El suscrito declara conocer que la prima del Seguro de Protección Integral de Usuarios Financieros se paga de forma mensual o anual, según su selección, y mediante débito automático. Asimismo, el suscrito autoriza al Banco entregar a la Compañía Aseguradora para fines pertinentes, las correspondientes imágenes grabadas en los cajeros automáticos, en caso de presentarse un siniestro y posterior reclamo. \n"]
["Declaro haber adquirido una póliza de Seguro de Vida y/o Seguro de Renta Hospitalaria y autorizo al Banco a proveer mi información personal (nombre completo, número de documento de identidad, fecha de nacimiento, dirección y teléfono) que consta en la base de datos del Banco a favor de la Compañia Aseguradora. \n"]
[{"$f":"\"Asimismo, instruyo al Banco efectúe el cobro de las primas emergentes del (de los) seguro (s) referidos de mi(s) cuenta(s) bancaria(s). \"","v":"Asimismo, instruyo al Banco efectúe el cobro de las primas emergentes del (de los) seguro (s) referidos de mi(s) cuenta(s) bancaria(s). "}]
[{"$f":"\"Declaro haber solicitado la generación del código QR que fue generado de acuerdo con los datos registrados en el presente formulario y asumo la responsabilidad de verificar que cada pago recibido a través del mismo sea abonado a la cuenta indicada. \"","v":"Declaro haber solicitado la generación del código QR que fue generado de acuerdo con los datos registrados en el presente formulario y asumo la responsabilidad de verificar que cada pago recibido a través del mismo sea abonado a la cuenta indicada. "}]
["Solicito(amos) bajo mi(nuestra) responsabilidad la creación de usuario(s) \"Controller\" que permitirá(n) revisar, controlar y aprobar con el 1% de incidencia las operaciones realizadas en la Banca Digital e-Bisa. "]
["Yo (nosotros) como titular(es) declaro(mos) haber recibido y comprendido  la información proporcionada por Banco Bisa S.A. referente a los límites para el uso de la Banca Digital e-Bisa+, manifestando mi (nuestra) aceptación al límite diario acumulado entre todas las transacciones para el uso de la Banca Digital e-Bisa+ por Bs. 69.600.- y el límite diario por funcionalidad de Bs. 10.000.- en cumplimiento a la RD 019/2025 del Banco Central de Bolivia, pudiendo solicitar bajo mi (nuestra) entera responsabilidad modificaciones a dichos límites."]
["Yo (nosotros) como titular(es) declaro(mos) haber recibido y comprendido la información proporcionada por Banco Bisa S.A. referente al uso de la tarjeta de débito y las transacciones disponibles a nivel nacional, así como las respectivas restricciones con su uso en el exterior. "]
["DILIGENCIA ADICIONAL: (Para Bisa Junior, dejar en blanco estos espacios) "]
["• ¿Es portador de tarjeta verde, pasaporte norteamericano, nacido o hijo de ciudadano de los Estados Unidos de Norteamérica?",null,null,null,null,null,null,null,null,null,null,null,null,null,null,null,null,{"$f":"MID(INSTRUCCIONES!S12,1,3)","v":""}]
["• ¿Ha permanecido más de 180 días en un año o promedio de 120 días al año durante los últimos 3 años en los Estados Unidos de Norteamérica?",null,null,null,null,null,null,null,null,null,null,null,null,null,null,null,null,{"$f":"MID(INSTRUCCIONES!S14,1,3)","v":""}]
["INFORMACIÓN ADICIONAL:  (Para Bisa Junior completar en los formularios de titulares) "]
["Persona Políticamente expuesta (PEPs):",null,null,null,null,null,null,{"$f":"IF(INSTRUCCIONES!U16=\"\",\"\",INSTRUCCIONES!U16)","v":""}]
[{"$f":"INSTRUCCIONES!A17","v":0}]
["INFORMACIÓN ADICIONAL - RETENCIONES JUDICIALES:"]
["Retención Judicial",null,null,null,null,null,null,{"$f":"IF(INSTRUCCIONES!U18=\"\",\"\",INSTRUCCIONES!U18)","v":""}]
[{"$f":"INSTRUCCIONES!A19","v":"No obstante de que el Banco me informó sobre los efectos de la(s) retención(es) judicial(es) que pesa(n) sobre mi persona, solicito proceder con la apertura de cuenta, bajo mi entera y absoluta responsabilidad."}]
["INFORMACIÓN ADICIONAL DEL ESPOSO(A), CÓNYUGE, CONCUBINO(A) o CONVIVIENTE:"]
["• Nombre del cónyugue",null,null,null,null,null,null,null,{"$f":"IF(M4=\"\",MID(INSTRUCCIONES!I22,1,200),\"No Aplica\")","v":""}]
["• CAEDEC de la Actividad Económica u Ocupación Principal:",null,null,null,null,null,null,null,{"$f":"MID(INSTRUCCIONES!I23,1,1000)","v":""}]
["CARACTERÍSTICAS DE LA CUENTA"]
["• TIPO DE CUENTA:",null,null,null,null,null,null,null,{"$f":"MID(INSTRUCCIONES!H42,1,30)","v":""},null,null,"• PRODUCTO:",null,null,{"$f":"IF(INSTRUCCIONES!P42=\"\",\"\",INSTRUCCIONES!P42)","v":""}]
["• ADMINISTRACIÓN DE LA CUENTA:",null,null,null,null,null,null,null,{"$f":"MID(INSTRUCCIONES!S42,1,30)","v":""}]
["• MONEDA:",null,null,null,null,null,null,null,{"$f":"MID(INSTRUCCIONES!L42,1,35)","v":""}]
["• No DE CUENTA:",null,null,null,null,null,null,null,{"$f":"MID(INSTRUCCIONES!Q51,1,20)","v":""}]
["• MOTIVO DE LA APERTURA DE CUENTA:",null,null,null,null,null,null,null,{"$f":"MID(INSTRUCCIONES!H43,1,1500)","v":""}]
["SOLICITUD DE TALONARIO DE CHEQUERAS"]
[{"$f":"\"Solicito la emisión de \"&INSTRUCCIONES!M67&\" talonario(s) de chequera(s) de \"&INSTRUCCIONES!Q67&\" unidades, para girar cheques sobre la cuenta No. \"&INSTRUCCIONES!M68&\" a nombre de \"&INSTRUCCIONES!Q68&\", la(s) misma(s) deben ser impresas: \"&INSTRUCCIONES!Q69&\".\"","v":"Solicito la emisión de  talonario(s) de chequera(s) de  unidades, para girar cheques sobre la cuenta No.  a nombre de , la(s) misma(s) deben ser impresas: ."}]
["Asimismo, autorizo (autorizamos) efectuar el cobro de la comisión por la emisión de la(s) chequera(s) se realice con débito de la misma cuenta. "]
[{"$f":" \"Emitir la factura por emisión de la chequera a nombre de: \"&INSTRUCCIONES!Q71&\" con número de NIT: \"&INSTRUCCIONES!M71&\".\"","v":"Emitir la factura por emisión de la chequera a nombre de:  con número de NIT: ."}]
[{"$f":" \"La persona autorizada para el recojo del (los) talonario(s) de chequera(s) y factura (s) es el señor(a) \"&INSTRUCCIONES!Q70&\" con cédula de identidad No. \"&INSTRUCCIONES!M70&\".\"","v":"La persona autorizada para el recojo del (los) talonario(s) de chequera(s) y factura (s) es el señor(a)  con cédula de identidad No. ."}]
["SERVICIOS ADICIONALES"]
["TARJETA DE DÉBITO:  ",null,null,null,null,null,null,null,null,null,null,null,null,null,null,null,null,null,null,null,null,null,"(*) De la cuenta primaria se debitará las compras en puntos POS y  en retiros en Cajeros Automáticos de otros Bancos"]
["La tarjeta de débito se encuentra habilitada por defecto para compras por internet en comercios locales por un límite diario de Bs. 500.-, así como para realizar pagos por servicios TIGO por un monto diario de Bs. 1.000.-"]
[{"$f":"IF(INSTRUCCIONES!A51=\"\",\"\",INSTRUCCIONES!A51)","v":"Tarjeta de débito: \n(sólo persona natural)"},null,null,null,null,null,null,null,{"$f":"MID(INSTRUCCIONES!I51,1,10)","v":""},null,"Tarjeta No: ",{"$f":"MID(INSTRUCCIONES!M51,1,19)","v":""},null,null,{"$f":"MID(INSTRUCCIONES!P51,1,40)","v":""},null,{"$f":"IF(AND(INSTRUCCIONES!I51<>\"RECHAZO\",AUX!A1>=76),MID(AUX!B43,1,20),IF(AND(INSTRUCCIONES!I51<>\"RECHAZO\",AUX!A1<76),MID(AUX!B21,1,20),\"\"))","v":""}]
[]
["Seguro de protección tarjetahabientes: ",null,null,null,null,null,null,null,{"$f":"MID(INSTRUCCIONES!I52,1,20)","v":""},null,"Forma de Pago de la prima:",{"$f":"IF(INSTRUCCIONES!K52=\"\",\"\",INSTRUCCIONES!K52)","v":""}]
[]
["Habilitación para uso en el exterior:",null,null,null,null,null,null,"Desde:",{"$f":"IF(INSTRUCCIONES!M53=\"\",\"\",INSTRUCCIONES!M53)","v":""},null,"Hasta:",{"$f":"IF(INSTRUCCIONES!P53=\"\",\"\",INSTRUCCIONES!P53)","v":""}]
[]
[{"$f":"INSTRUCCIONES!A54","v":"Modificación de límite diario para compras por Internet"},null,null,null,null,null,null,"Desde:",{"$f":"IF(INSTRUCCIONES!M54=\"\",\"\",INSTRUCCIONES!M54)","v":""},null,"Hasta:",{"$f":"IF(INSTRUCCIONES!P54=\"\",\"\",INSTRUCCIONES!P54)","v":""},null,null,null,"Monto límite diario (Bs.):",{"$f":"IF(INSTRUCCIONES!S54=\"\",\"\",INSTRUCCIONES!S54)","v":""}]
[]
[{"$f":"INSTRUCCIONES!A55","v":"Deshabilitación para compras por Internet"},null,null,null,null,null,null,null,{"$f":"IF(INSTRUCCIONES!I55=\"\",\"\",INSTRUCCIONES!I55)","v":""}]
[]
["Ampliación de límite diario para transacciones ATM",null,null,null,null,null,null,"Monto límite:",{"$f":"MID(INSTRUCCIONES!M56,10,15)","v":""}]
[{"$f":"INSTRUCCIONES!M52","v":"Tarjeta Nominada:"},null,null,null,null,null,null,null,{"$f":"IF(INSTRUCCIONES!N52=\"\",\"\",INSTRUCCIONES!N52)","v":""},null,{"$f":"INSTRUCCIONES!P52","v":"Nombre para la nominación:"},{"$f":"INSTRUCCIONES!Q52","v":0}]
["e-BISA Y e-BISA MÓVIL"]
[]
["Banca electrónica por internet e-Bisa y todos sus servicios adicionales:",null,null,null,null,null,null,null,{"$f":"MID(INSTRUCCIONES!I59,1,20)","v":""},null,"Usuario login: ",{"$f":"MID(INSTRUCCIONES!M59,1,50)","v":""},null,null,null,"Límite diario de movimiento(Bs):",{"$f":"INSTRUCCIONES!Q59","v":0}]
[null,null,null,null,null,null,null,null,null,null,{"$f":"INSTRUCCIONES!K60","v":"Tipo de usuario:"},{"$f":"IF(INSTRUCCIONES!M60=\"\",\"\",INSTRUCCIONES!M60)","v":""},null,null,null,{"$f":"INSTRUCCIONES!P60","v":"Selección del sistema para el registro de datos para el acceso a E-mail Token y/o SMS Token:"},{"$f":"IF(INSTRUCCIONES!Q60=\"\",\"\",INSTRUCCIONES!Q60)","v":""}]
["e-BISA+ Y e-BISA MÓVIL+"]
[{"$f":"CONCATENATE(MID(INSTRUCCIONES!A62,1,132),\"\",\"El límite diario establecido aplica a cada funcionalidad de la Banca Digital.\")","v":"La afiliación al servicio habilita todas las funcionalidades del mismo y asocia todos los productos activos del cliente a la fecha. El límite diario establecido aplica a cada funcionalidad de la Banca Digital."}]
["Banca electrónica por internet e-Bisa+ y e-Bisa Móvil+:",null,null,null,null,null,null,null,{"$f":"IF(INSTRUCCIONES!I63=\"\",\"\",INSTRUCCIONES!I63)","v":""},null,"No. celular para el servicio: ",{"$f":"IF(INSTRUCCIONES!M63=\"\",\"\",INSTRUCCIONES!M63)","v":""},null,null,null,"Correo electrónico: ",{"$f":"INSTRUCCIONES!Q63","v":""}]
[null,null,null,null,null,null,"Usuario login: ",null,{"$f":"IF(INSTRUCCIONES!I64=\"\",\"\",INSTRUCCIONES!I64)","v":""},null,{"$f":"INSTRUCCIONES!K64","v":"Límite diario acumulado de todas las transacciones (Bs): "},{"$f":"IF(INSTRUCCIONES!M64=\"\",\"\",INSTRUCCIONES!M64)","v":"69.600.-"},null,null,null,{"$f":"INSTRUCCIONES!P64","v":"Límite diario por cada funcionalidad (Bs):"},{"$f":"INSTRUCCIONES!Q64","v":"10.000.-"}]
[{"$f":"INSTRUCCIONES!A65","v":"Dispositivo de Seguridad (login):"},null,null,null,null,null,null,null,{"$f":"IF(INSTRUCCIONES!I65=\"\",\"\",INSTRUCCIONES!I65)","v":"Soft Token"},null,{"$f":"INSTRUCCIONES!K65","v":"Dispositivo de Seguridad (Monetarias):"},{"$f":"IF(INSTRUCCIONES!M65=\"\",\"\",INSTRUCCIONES!M65)","v":"Soft Token"},null,null,null,{"$f":"INSTRUCCIONES!P65","v":"Dispositivo de Seguridad (No Monetarias):"},{"$f":"IF(INSTRUCCIONES!Q65=\"\",\"\",INSTRUCCIONES!Q65)","v":"Soft Token"}]
[]
["SEGUROS"]
["Seguro de Vida:",null,null,null,null,null,null,null,{"$f":"IF(INSTRUCCIONES!I73=\"\",\"\",INSTRUCCIONES!I73)","v":""}]
["Seguro Renta Hospitalaria:",null,null,null,null,null,null,null,{"$f":"IF(INSTRUCCIONES!I74=\"\",\"\",INSTRUCCIONES!I74)","v":""}]
["GENERACIÓN DEL CÓDIGO QR"]
["Número de cuenta a acreditar:",null,null,null,null,null,null,null,{"$f":"IF(INSTRUCCIONES!I76=\"\",\"\",INSTRUCCIONES!I76)","v":""},null,"Tipo de pago: ",{"$f":"IF(INSTRUCCIONES!M76=\"\",\"\",INSTRUCCIONES!M76)","v":""},null,null,null,"Moneda: ",{"$f":"IF(INSTRUCCIONES!Q76=\"\",\"\",INSTRUCCIONES!Q76)","v":""}]
["Monto: \n(completar solo si se elige \"monto fijo\", caso contrario registrar \"0\")",null,null,null,null,null,null,null,{"$f":"IF(INSTRUCCIONES!I77=\"\",\"\",INSTRUCCIONES!I77)","v":""},null,"Concepto: ",{"$f":"IF(INSTRUCCIONES!M77=\"\",\"\",INSTRUCCIONES!M77)","v":""}]
[null,null,null,null,null,null,null,null,null,null,"Periodo de Validez: ",{"$f":"IF(INSTRUCCIONES!M78=\"\",\"\",INSTRUCCIONES!M78)","v":""},null,null,{"$f":"IF(INSTRUCCIONES!P78=\"\",\"\",INSTRUCCIONES!P78)","v":"del 15 de febrero al 28 de febrero."}]
["DOCUMENTOS ENTREGADOS AL CLIENTE:"]
[null,{"$f":"IF(I48<>\"\",\"X\",\"\")","v":""},"Contrato caja de ahorros o cuenta corriente.",null,null,null,null,null,null,null,null,{"$f":"IF(I61=\"NUEVA\",\"X\",IF(I61=\"ADICIONAL\",\"X\",\"\"))","v":""},{"$f":"IF(I72= \"SI\", \"Tarjeta de débito nominada y PIN (en sobre cerrado)\",\"Tarjeta de débito innominada y PIN (en sobre cerrado)\")","v":"Tarjeta de débito innominada y PIN (en sobre cerrado)"}]
[null,{"$f":"IF(OR(I48=\"CAJA DE AHORRO\",I48=\"BISA JUNIOR\"),\"X\",\"\")","v":""},"Reglamento interno para cuentas de caja de ahorro del Banco Bisa S.A.",null,null,null,null,null,null,null,null,{"$f":"IF(I63=\"ACEPTA\",\"X\",\"\")","v":""},"Certificado Seguro de protección de tarjeta de débito."]
[null,{"$f":"IF(I48=\"CUENTA CORRIENTE\",\"X\",\"\")","v":""},"Reglamento interno para cuentas corrientes del Banco Bisa S.A. y Reglamento de Cheque y Cartilla de uso del cheque y sus medidas de seguridad.",null,null,null,null,null,null,null,null,{"$f":"IF(INSTRUCCIONES!Y59=\"\",\"\",INSTRUCCIONES!Y59)","v":""},{"$f":"IF(INSTRUCCIONES!Y60=\"\",\"\",INSTRUCCIONES!Y60)","v":""}]
[null,null,null,null,null,null,null,null,null,null,null,{"$f":"IF(AND(INSTRUCCIONES!I59=\"NUEVA\",INSTRUCCIONES!M60<>\"\"),\"X\",\"\")","v":""},"Tarjeta de coordenadas / Token No:",null,null,null,{"$f":"MID(INSTRUCCIONES!I60,1,30)","v":""}]
[null,{"$f":"IF(I84=\"SI\",\"X\",\"\")","v":""},"Certificado de Cobertura del Seguro de Vida Temporal Renovable.",null,null,null,null,null,null,null,null,{"$f":"IF(I85=\"SI\",\"X\",\"\")","v":""},"Certificado de Cobertura del Seguro de Renta por Hospitalización."]
[null,{"$f":"IF(L87<>\"\",\"X\",\"\")","v":""},"Generación del Código QR."]
["Estimado cliente, le informamos y recomendamos: \n\n"]
["▪ Que la tarjeta de débito puede ser utilizada para realizar compras por internet en comercios locales, este servicio tienen la opción de ser habilitado o deshabilitado mediante la Banca Digital, Bisa Responde o en cualquiera de nuestras oficinas. "]
["▪ Que la tarjeta de débito se encuentra habilitada para realizar compras por internet en comercios de Bolivia, por un monto diario de Bs. 500.- y para pago por servicios TIGO por un monto diario de Bs. 1.000.-"]
["▪ La habilitación de la tarjeta de débito para compras por internet en comercios del exterior o la modificación del límite diario aplicará para comercios de Bolivia y del exterior por el periodo definido por el cliente. Concluido el periodo de habilitación de la tarjeta de débito o la modificación de límite diario del servicio de compras por internet, se deshabilitará el servicio de compras por internet y únicamente se mantendrá habilitado los pagos por servicios Tigo. Si usted no requiere esta habilitación, por favor solicitar la inhabilitación del servicio en cualquiera de nuestras oficinas o a través de Bisa Responde."]
["▪ Que la tarjeta de débito que le ha sido entregada puede ser utilizada en el exterior previa habilitación de la misma, por el periodo requerido, a través de la Banca Digital, Bisa Responde o en cualquiera de nuestras oficinas a nivel nacional. \n▪ Que los límites para retiros en el exterior se encuentran detallados en la página web del Banco.\n▪ Que las compras por internet y pagos por consumos en POS en comercios del exterior y retiros en ATM del exterior están sujetos al cobro de comisiones de acuerdo al tarifario vigente, el cual puede ser consultado en la página web del Banco (www.bisa.com)."]
["▪ Que la tarjeta de débito se encuentra habilitada para realizar transacciones CONTACTLESS: \n     • Transacciones en POS con el ingreso del PIN hasta el límite diario establecido de la tarjeta de débito, sin el ingreso del PIN hasta un límite de Bs 200.-        por operación y hasta un máximo de 4 transacciones al día.\n     • Transacciones en ATM con uso de PIN de acuerdo al límite establecido en la tarjeta de débito. "]
["▪ Realizar periodicamente la revisión del extracto de su cuenta para verificar sus transacciones."]
["▪ Que el plazo para solicitar la revisión de transacciones no reconocidas o no satisfactorias, realizadas con Tarjeta de Débito por internet, debe efectuarse antes de los cien (100) de realizada la transacción. Asimismo, dichas solicitudes pueden ser presentadas en los canales del Banco a su disposición (Página Web, Plataforma de atención al cliente o Bisa Responde), considerando lo siguiente:\n   • No se deberá superar las 35 transacciones por cada solicitud presentada. \n   • El plazo estipulado en el presente comunicado no aplica al Seguro de Protección de Tarjeta de Débito.  "]
["▪ Que  Visa Internacional trabaja solamente con la moneda dólar estadounidense, por lo que las transacciones con la Tarjeta de Débito en el exterior (moneda local), podrían aplicar doble tipo de cambio.\n"]
["El Banco Bisa S.A. en virtud al mandato contenido en el inciso c) del Art. 74 concordante con el inciso b) del Art. 79 de la Ley Nro. 303 de Servicios Financieros informa al titular de cuenta en Euros las siguientes condiciones:  \n▪ Los retiros de fondos solicitados en dicha moneda extranjera solo podrán efectuarse en ventanillas de atención al público de las Oficinas Principales de cada Regional del Banco. Asimismo, dichos retiros se cubrirán en la moneda estipulada cuando fuere legalmente posible conforme lo dispone el Art. 795 del Código de Comercio. En caso de imposibilidad legal - material, el Banco podrá hacer entrega del importe que corresponda en moneda nacional, utilizando para el efecto la cotización referencial de Euro en Bolivianos, según la publicación diaria del Banco Central de Bolivia.\n▪ Todas las transacciones realizadas desde una cuenta en Euros mediante Tarjeta de Débito, tanto en el exterior como en territorio nacional, estarán sujetas a las normativas de cambio de moneda vigentes:\n     • En el extranjero se aplicará el tipo de cambio sobre el monto de la transacción, considerando que Visa Internacional opera exclusivamente en dólares estadounidenses.\n     • En el territorio nacional las transacciones se efectúan en bolivianos, ajustándose al tipo de cambio establecido según el tarifario de Banco BISA S.A. y conforme a las regulaciones cambiarias vigentes al momento del pago."]
["El (La) (Los) cliente(s) financiero(s) declaro(amos) haber recibido satisfactoriamente la documentación señalada (marcada) anteriormente."]
["La información contenida en el presente formulario representa una Declaración Jurada del cliente, declarando que la información proporcionada es auténtica y fidedigna."]
[null,"Lugar: ",null,null,{"$f":"MID(INSTRUCCIONES!I80,1,60)","v":""},null,null,null,null,null,null,null,null,"Fecha: ",null,{"$f":"TODAY()","v":"2025-09-29"}]
[]
[]
[null,{"$f":"IF(INSTRUCCIONES!P42=\"Bisa Junior\",\"CUENTA BISA JUNIOR ADMINISTRADA POR PADRES O TUTORES\",\"\")","v":""}]
[]
[]
[]
[]
[null,"Firma Solicitante (Titular)",null,null,null,null,null,null,null,"Firma Titular 2  o Firmante para Bisa Junior",null,null,null,null,null,"Firma Titular 3 o Firmante para Bisa Junior"]
[null,{"$f":"F3","v":""},null,null,null,null,null,null,null,{"$f":"IF(INSTRUCCIONES!J26=\"\",\"\",INSTRUCCIONES!J26)","v":""},null,null,null,null,null,{"$f":"IF(INSTRUCCIONES!J28=\"\",\"\",INSTRUCCIONES!J28)","v":""}]
[null,{"$f":"\"Doc. Id.: \"&F4&\"\"","v":"Doc. Id.: "},null,null,null,null,null,null,null,{"$f":"\"Doc. Id.: \"&INSTRUCCIONES!Q27&\" \"&INSTRUCCIONES!J27&\" \"","v":"Doc. Id.:   "},null,null,null,null,null,{"$f":"\"Doc. Id.: \"&INSTRUCCIONES!Q29&\" \"&INSTRUCCIONES!J29&\" \"","v":"Doc. Id.:   "}]
[]
[]
[]
[]
[]
[]
[]
[]
[]
[null,"Firma Titular 4",null,null,null,null,null,null,null,"Firma Titular 5",null,null,null,null,null,"Firma Titular 6"]
[null,{"$f":"IF(INSTRUCCIONES!J30=\"\",\"\",INSTRUCCIONES!J30)","v":""},null,null,null,null,null,null,null,{"$f":"IF(INSTRUCCIONES!J32=\"\",\"\",INSTRUCCIONES!J32)","v":""},null,null,null,null,null,{"$f":"IF(INSTRUCCIONES!J34=\"\",\"\",INSTRUCCIONES!J34)","v":""}]
[null,{"$f":"\"Doc. Id.:  \"&INSTRUCCIONES!Q31&\" \"&INSTRUCCIONES!J31&\" \"","v":"Doc. Id.:    "},null,null,null,null,null,null,null,{"$f":"\"Doc. Id.: \"&INSTRUCCIONES!Q33&\" \"&INSTRUCCIONES!J33&\" \"","v":"Doc. Id.:   "},null,null,null,null,null,{"$f":"\"Doc. Id.: \"&INSTRUCCIONES!Q35&\" \"&INSTRUCCIONES!J35&\" \"","v":"Doc. Id.:   "}]
[]
["USO INTERNO DEL BANCO (ESTA SECCIÓN PUEDE SER DE LLENADO MANUAL):"]
[]
[null,"¿Cliente con registro de cuentas clausuradas? (para solicitudes de cuentas corrientes)."]
[]
[null,null,null,null,"Nombre y cédula de identidad/ NIT  de la persona natural:",null,null,null,null,null,null,null,"SI",null,"NO"]
[]
["FIRMA DE VERIFICACIÓN (USO EXCLUSIVO DEL BANCO): "]
[null,"Firma y sello del Asistente responsable de la apertura de cuenta: ",null,null,null,null,null,null,null,null,null,null,"Firma y sello del Responsable de Sector:"]
[null,null,null,null,null,null,null,null,null,null,null,null,"Confirmo haber realizado la verificación de datos de la apertura de esta cuenta. "]

{"sheet":"Doc entregados al cliente","index":3,"n_rows":47,"n_cols":19,"rows_kept":47,"cut":false,"hidden":true,"merged":[[41,2,41,10],[17,0,17,7],[17,12,17,14],[17,16,17,20],[21,0,21,7],[19,16,19,20],[19,12,19,14],[19,10,19,11],[15,0,15,20],[38,2,40,10],[1,12,1,16],[1,18,1,20],[7,14,7,15],[36,2,37,10],[2,8,2,9],[3,8,3,9],[2,0,2,7],[3,0,3,7],[2,10,2,12],[3,10,3,12],[2,13,2,20],[26,0,26,20],[4,0,4,20],[7,16,7,20],[3,13,3,20],[0,0,0,20],[7,12,7,13],[13,0,13,7],[13,12,13,14],[13,16,13,20],[8,8,8,20],[7,0,8,7],[5,0,5,20],[6,0,6,20],[11,0,11,20],[9,10,9,11],[9,12,9,13],[45,0,45,20],[46,0,46,20],[16,0,16,20],[21,10,21,11],[21,12,21,14],[17,10,17,11],[21,16,21,20],[28,0,28,20],[29,0,29,20],[44,0,44,20],[32,0,32,20],[38,17,38,19],[42,3,42,6],[42,12,42,15],[24,0,24,20],[31,0,31,20]]}
[]
["CARACTERÍSTICAS DE LA CUENTA:",null,null,null,null,null,null,null,null,null,null,null,{"$f":"MID('Form. Apertura Caja Ahorro PN'!L2,1,35)","v":""},null,null,null,null,null,{"$f":"NOW()","v":45929.467308449071}]
["TIPO DE CUENTA:",null,null,null,null,null,null,null,{"$f":"MID(INSTRUCCIONES!H42,1,30)","v":""},null,"No DE CUENTA:",null,null,{"$f":"MID(INSTRUCCIONES!Q51,1,12)","v":""}]
["ADMINISTRACIÓN DE LA CUENTA",null,null,null,null,null,null,null,{"$f":"MID(INSTRUCCIONES!S42,1,30)","v":""},null,"MONEDA:",null,null,{"$f":"MID(INSTRUCCIONES!L42,1,30)","v":""}]
["SERVICIOS ADICIONALES"]
["TARJETA DE DÉBITO:  "]
[]
["Tarjeta de débito(*): \n",null,null,null,null,null,null,null,{"$f":"MID(INSTRUCCIONES!I51,1,30)","v":""},null,"Tarjeta No: ",null,{"$f":"MID(INSTRUCCIONES!M51,1,29)","v":""},null,{"$f":"MID(INSTRUCCIONES!P51,1,40)","v":""},null,{"$f":"IF(AND(INSTRUCCIONES!I51<>\"RECHAZO\",AUX!A1>=76),MID(AUX!B43,1,20),IF(AND(INSTRUCCIONES!I51<>\"RECHAZO\",AUX!A1<76),MID(AUX!B21,1,20),\"\"))","v":""}]
[null,null,null,null,null,null,null,null," De la cuenta primaria se debitará las compras realizadas a través de POS y los retiros en cajeros automáticos de otros Bancos"]
["Seguro de protección tarjetahabientes: ",null,null,null,null,null,null,null,{"$f":"MID(INSTRUCCIONES!I52,1,30)","v":""},null,{"$f":"'Form. Apertura Caja Ahorro PN'!K63","v":"Forma de Pago de la prima:"},null,{"$f":"'Form. Apertura Caja Ahorro PN'!L63","v":""}]
[]
["e-BISA Y e-BISA MÓVIL"]
[]
["Banca electrónica por internet e-Bisa y todos sus servicios adicionales:",null,null,null,null,null,null,null,{"$f":"MID(INSTRUCCIONES!I59,1,30)","v":""},null,"Usuario login: ",null,{"$f":"MID(INSTRUCCIONES!M59,1,50)","v":""},null,null,"Límite diario de movimiento(Bs):",{"$f":"INSTRUCCIONES!Q59","v":0}]
[]
["e-BISA+ Y e-BISA MÓVIL+"]
[{"$f":"'Form. Apertura Caja Ahorro PN'!A78","v":"La afiliación al servicio habilita todas las funcionalidades del mismo y asocia todos los productos activos del cliente a la fecha. El límite diario establecido aplica a cada funcionalidad de la Banca Digital."}]
["Banca electrónica por internet e-Bisa+ y e-Bisa Móvil+:",null,null,null,null,null,null,null,{"$f":"'Form. Apertura Caja Ahorro PN'!I79","v":""},null,"No celular para el servicio: ",null,{"$f":"'Form. Apertura Caja Ahorro PN'!L79","v":""},null,null,"Correo electrónico: ",{"$f":"'Form. Apertura Caja Ahorro PN'!Q79","v":""}]
[]
[null,null,null,null,null,null,null,null,null,null,{"$f":"INSTRUCCIONES!K64","v":"Límite diario acumulado de todas las transacciones (Bs): "},null,{"$f":"IF(INSTRUCCIONES!M64=\"\",\"\",INSTRUCCIONES!M64)","v":"69.600.-"},null,null,{"$f":"INSTRUCCIONES!P64","v":"Límite diario por cada funcionalidad (Bs):"},{"$f":"IF(INSTRUCCIONES!Q64=\"\",\"\",INSTRUCCIONES!Q64)","v":"10.000.-"}]
[]
[{"$f":"INSTRUCCIONES!A65","v":"Dispositivo de Seguridad (login):"},null,null,null,null,null,null,null,{"$f":"IF(INSTRUCCIONES!I65=\"\",\"\",INSTRUCCIONES!I65)","v":"Soft Token"},null,{"$f":"INSTRUCCIONES!K65","v":"Dispositivo de Seguridad (Monetarias):"},null,{"$f":"IF(INSTRUCCIONES!M65=\"\",\"\",INSTRUCCIONES!M65)","v":"Soft Token"},null,null,{"$f":"INSTRUCCIONES!P65","v":"Dispositivo de Seguridad (No Monetarias):"},{"$f":"IF(INSTRUCCIONES!Q65=\"\",\"\",INSTRUCCIONES!Q65)","v":"Soft Token"}]
[]
["AUTORIZACIÓN"]
[{"$f":"'Form. Apertura Caja Ahorro PN'!A32","v":"Solicito(amos) bajo mi(nuestra) responsabilidad la creación de usuario(s) \"Controller\" que permitirá(n) revisar, controlar y aprobar con el 1% de incidencia las operaciones realizadas en la Banca Digital e-Bisa. "}]
["DECLARACIONES Y AUTORIZACIONES POR SERVICIOS ADICIONALES"]
[{"$f":"'Form. Apertura Caja Ahorro PN'!A26:U26","v":"Declaro la afiliación al Seguro de Protección Integral de mi tarjeta de débito y autorizo en forma irrevocable al Banco para que efectúe el cobro de la prima mensual o anual, de la siguiente manera:\n"}]
[{"$f":"'Form. Apertura Caja Ahorro PN'!A27:U27","v":"El cobro se realizará mediante débito automático de la cuenta de caja de ahorro primaria establecida en mi tarjeta de débito."}]
[{"$f":"'Form. Apertura Caja Ahorro PN'!A28:U28","v":"El suscrito declara conocer que la prima del Seguro de Protección Integral de Usuarios Financieros se paga de forma mensual o anual, según su selección, y mediante débito automático. Asimismo, el suscrito autoriza al Banco entregar a la Compañía Aseguradora para fines pertinentes, las correspondientes imágenes grabadas en los cajeros automáticos, en caso de presentarse un siniestro y posterior reclamo. \n"}]
[{"$f":"'Form. Apertura Caja Ahorro PN'!A29:U29","v":"Declaro haber adquirido una póliza de Seguro de Vida y/o Seguro de Renta Hospitalaria y autorizo al Banco a proveer mi información personal (nombre completo, número de documento de identidad, fecha de nacimiento, dirección y teléfono) que consta en la base de datos del Banco a favor de la Compañia Aseguradora. \n"}]
[{"$f":"'Form. Apertura Caja Ahorro PN'!A31:U31","v":"Declaro haber solicitado la generación del código QR que fue generado de acuerdo con los datos registrados en el presente formulario y asumo la responsabilidad de verificar que cada pago recibido a través del mismo sea abonado a la cuenta indicada. "}]
[{"$f":"'Form. Apertura Caja Ahorro PN'!A25:U25","v":"Declaro que aún después de la explicación recibida por el personal del Banco respecto a las ventajas y beneficios del seguro de Protección de Tarjetas de Débito, de manera libre y voluntaria, sin que exista vicio o dolo en mi consentimiento, RECHAZO adherirme y/o afiliarme al seguro señalado anteriormente y ofertado por el Banco, para la Tarjeta citada seguidamente, liberando a éste de cualquier responsabilidad.\n\nAsumiendo así, cualquier evento que pudiera ocurrir a consecuencia de uso indebido de mi tarjeta de débito o tarjetas adicionales, y que pudieran ocasionar el uso de cualquier monto inclusive hasta el límite de compras en mi(s) cuenta(s) a las cual(es) se halla ligada la(s) tarjeta(s) de débito de mi propiedad.\n\nDeclaro tener conocimiento que el rechazo incluye la cobertura de:\n1. Cobertura contra Robo hasta Bs. 69.600.-\n2. Robo a consecuencia asalto y utilización forzada hasta Bs. 13.920.- por evento y Bs. 34.800.- anual.\n3. Robo a consecuencia de fraude por terceros hasta Bs. 13.920.- por evento y Bs. 34.800.- anual.\n4. Uso indebido de la tarjeta por terceros hasta Bs.69.600.-\n5. Clonación hasta Bs.69.600.-\n6. Secuestro para retiros hasta Bs. 34.800.- anual.\n7. Muerte accidental a consecuencia de asalto hasta Bs.69.600.-\n8. Invalidez Parcial o Total a consecuencia de asalto hasta Bs.69.600.-\n9. Reembolso de Gastos Médicos a consecuencia de asalto hasta Bs. 6.960.-\n10. Re - emisión de documentos hasta Bs. 1.740.-\n11. Hacking \n12. Contact Less\n13. Robo por transacciones fraudulentas en compras por internet.\n14. Cash Back, por hasta Bs. 300.-\n15. Traslado médico a consecuencia asalto o secuestro.  "}]
["DOCUMENTOS ENTREGADOS "]
[]
[null,{"$f":"IF(I3<>\"\",\"X\",\"\")","v":""},"Contrato caja de ahorros o cuenta corriente.",null,null,null,null,null,null,null,null,{"$f":"MID('Form. Apertura Caja Ahorro PN'!L91,1,2)","v":""},"Tarjeta de débito innominada y PIN (en sobre cerrado) "]
[]
[null,{"$f":"IF(OR(I3=\"CAJA DE AHORRO\",I3=\"BISA JUNIOR\"),\"X\",\"\")","v":""},"Reglamento interno para cuentas de caja de ahorro del Banco Bisa S.A.",null,null,null,null,null,null,null,null,{"$f":"IF(I10=\"ACEPTA\",\"X\",\"\")","v":""},"Certificado Seguro de protección de tarjeta de débito."]
[]
[null,{"$f":"IF(I3=\"CUENTA CORRIENTE\",\"X\",\"\")","v":""},"Reglamento interno para cuentas corrientes del Banco Bisa S.A. y Reglamento de Cheque y Cartilla de uso del cheque y sus medidas de seguridad.",null,null,null,null,null,null,null,null,{"$f":"IF(INSTRUCCIONES!Y59=\"\",\"\",INSTRUCCIONES!Y59)","v":""},{"$f":"IF(INSTRUCCIONES!Y60=\"\",\"\",INSTRUCCIONES!Y60)","v":""}]
[]
[null,null,null,null,null,null,null,null,null,null,null,{"$f":"'Form. Apertura Caja Ahorro PN'!L94","v":""},"Tarjeta de coordenadas "]
[null,{"$f":"'Form. Apertura Caja Ahorro PN'!B95","v":""},{"$f":"'Form. Apertura Caja Ahorro PN'!C95","v":"Certificado de Cobertura del Seguro de Vida Temporal Renovable."},null,null,null,null,null,null,null,null,{"$f":"'Form. Apertura Caja Ahorro PN'!L95","v":""},{"$f":"'Form. Apertura Caja Ahorro PN'!M95","v":"Certificado de Cobertura del Seguro de Renta por Hospitalización."}]
[null,"Lugar: ",null,{"$f":"MID(INSTRUCCIONES!I80,1,50)","v":""},null,null,null,null,null,null,"Fecha: ",null,{"$f":"TODAY()","v":"2025-09-29"}]
[]
[{"$f":"'Form. Apertura Caja Ahorro PN'!A97:U97","v":"Estimado cliente, le informamos y recomendamos: \n\n"}]
[{"$f":"'Form. Apertura Caja Ahorro PN'!A105","v":"▪ Que  Visa Internacional trabaja solamente con la moneda dólar estadounidense, por lo que las transacciones con la Tarjeta de Débito en el exterior (moneda local), podrían aplicar doble tipo de cambio.\n"}]
["ANTE CUALQUIER DUDA O CONSULTA CONTACTARSE CON BISA RESPONDE"]

{"sheet":"Doc entregados al cliente Web","index":4,"n_rows":41,"n_cols":19,"rows_kept":41,"cut":false,"hidden":true,"merged":[[5,0,5,20],[11,0,11,20],[3,0,3,7],[3,8,3,9],[3,10,3,12],[3,13,3,20],[4,0,4,20],[9,10,9,20],[0,0,0,20],[1,12,1,16],[1,18,1,20],[2,0,2,7],[2,8,2,9],[2,10,2,12],[2,13,2,20],[26,0,26,20],[27,0,27,20],[28,0,28,20],[39,0,39,20],[40,0,40,20],[29,0,29,20],[33,2,34,10],[35,2,36,10],[35,17,35,19],[37,3,37,6],[37,12,37,15],[23,0,23,7],[23,10,23,11],[23,12,23,14],[17,10,17,11],[25,0,25,20],[21,0,21,20],[23,16,23,20],[15,0,15,20],[16,0,16,20],[19,12,19,14],[19,16,19,20],[17,0,17,7],[17,12,17,14],[17,16,17,20],[13,0,13,7],[8,8,8,20],[7,0,8,7],[7,12,7,13],[7,14,7,15],[7,16,7,20],[13,12,13,14],[13,16,13,20]]}
[]
["CARACTERÍSTICAS DE LA CUENTA:",null,null,null,null,null,null,null,null,null,null,null,{"$f":"MID('Form. Apertura Caja Ahorro PN'!L2,1,35)","v":""},null,null,null,null,null,{"$f":"NOW()","v":45929.467308449071}]
["TIPO DE CUENTA:",null,null,null,null,null,null,null,{"$f":"MID(INSTRUCCIONES!H42,1,30)","v":""},null,"No DE CUENTA:",null,null,{"$f":"MID(INSTRUCCIONES!Q51,1,12)","v":""}]
["ADMINISTRACIÓN DE LA CUENTA",null,null,null,null,null,null,null,{"$f":"MID(INSTRUCCIONES!S42,1,30)","v":""},null,"MONEDA:",null,null,{"$f":"MID(INSTRUCCIONES!L42,1,30)","v":""}]
["SERVICIOS ADICIONALES"]
["TARJETA DE DÉBITO:  "]
[]
["Tarjeta de débito(*): \nLa tarjeta de débito se encuentra habilitada para compras por internet en comercios locales por un límite diario de Bs. 300.-",null,null,null,null,null,null,null,{"$f":"MID(INSTRUCCIONES!I51,1,30)","v":""},null,"Tarjeta No.: ",null,{"$f":"MID(INSTRUCCIONES!M51,1,29)","v":""},null,{"$f":"MID(INSTRUCCIONES!P51,1,40)","v":""},null,{"$f":"IF(AND(INSTRUCCIONES!I51<>\"RECHAZO\",AUX!A1>=76),MID(AUX!B43,1,20),IF(AND(INSTRUCCIONES!I51<>\"RECHAZO\",AUX!A1<76),MID(AUX!B21,1,20),\"\"))","v":""}]
[null,null,null,null,null,null,null,null,"    De la cuenta primaria se debitará las compras realizadas a través de POS y los retiros en cajeros automáticos de otros Bancos"]
["Seguro de protección tarjetahabientes: ",null,null,null,null,null,null,null,{"$f":"MID(INSTRUCCIONES!I52,1,30)","v":""},null,"En caso de rechazar el seguro de protección el cliente financiero declara conocer los riesgos y responsabilidades que esta negativa conlleva ante eventos no deseados. "]
[]
["e-BISA Y BISA MÓVIL"]
[]
["Banca electrónica por internet e-Bisa y todos sus servicios adicionales:",null,null,null,null,null,null,null,{"$f":"MID(INSTRUCCIONES!I59,1,30)","v":""},null,"Usuario login: ",null,{"$f":"MID(INSTRUCCIONES!M59,1,50)","v":""},null,null,"Límite diario de movimiento(Bs):",{"$f":"INSTRUCCIONES!Q59","v":0}]
[]
["e-BISA+ Y BISA MÓVIL+"]
[{"$f":"'Form. Apertura Caja Ahorro PN'!A78","v":"La afiliación al servicio habilita todas las funcionalidades del mismo y asocia todos los productos activos del cliente a la fecha. El límite diario establecido aplica a cada funcionalidad de la Banca Digital."}]
["Banca electrónica por internet e-Bisa+ y e-Bisa Móvil+:",null,null,null,null,null,null,null,{"$f":"MID(INSTRUCCIONES!I63,1,30)","v":""},null,"No. celular para el servicio: ",null,{"$f":"MID(INSTRUCCIONES!M63,1,50)","v":""},null,null,"Correo electrónico: ",{"$f":"INSTRUCCIONES!Q63","v":""}]
[]
[null,null,null,null,null,null,null,null,null,null,"Usuario login: ",null,{"$f":"IF(INSTRUCCIONES!M64=\"\",\"\",INSTRUCCIONES!M64)","v":"69.600.-"},null,null,"Límite diario de movimiento(Bs):",{"$f":"IF(INSTRUCCIONES!Q64=\"\",\"\",INSTRUCCIONES!Q64)","v":"10.000.-"}]
[]
["BISA MÓVIL Y OTRAS APLICACIONES MÓVILES"]
[]
["Banca por celular (Bisa Móvil+) y otras aplicaciones móviles: ",null,null,null,null,null,null,null,{"$f":"MID(INSTRUCCIONES!#REF!,1,30)","v":{"$error":"#REF!"}},null,"No. celular para el servicio: ",null,{"$f":"IF(INSTRUCCIONES!M65=\"\",\"\",INSTRUCCIONES!M65)","v":"Soft Token"},null,null,"Alias: ",{"$f":"IF(INSTRUCCIONES!Q65=\"\",\"\",INSTRUCCIONES!Q65)","v":"Soft Token"}]
[]
["DECLARACIONES Y AUTORIZACIONES POR SERVICIOS ADICIONALES"]
[{"$f":"'Form. Apertura Caja Ahorro PN'!A26:U26","v":"Declaro la afiliación al Seguro de Protección Integral de mi tarjeta de débito y autorizo en forma irrevocable al Banco para que efectúe el cobro de la prima mensual o anual, de la siguiente manera:\n"}]
[{"$f":"'Form. Apertura Caja Ahorro PN'!A27:U27","v":"El cobro se realizará mediante débito automático de la cuenta de caja de ahorro primaria establecida en mi tarjeta de débito."}]
[{"$f":"'Form. Apertura Caja Ahorro PN'!A28:U28","v":"El suscrito declara conocer que la prima del Seguro de Protección Integral de Usuarios Financieros se paga de forma mensual o anual, según su selección, y mediante débito automático. Asimismo, el suscrito autoriza al Banco entregar a la Compañía Aseguradora para fines pertinentes, las correspondientes imágenes grabadas en los cajeros automáticos, en caso de presentarse un siniestro y posterior reclamo. \n"}]
["DOCUMENTOS ENTREGADOS "]
[]
[null,{"$f":"IF(I3<>\"\",\"X\",\"\")","v":""},"Contrato caja de ahorros o cuenta corriente. (2 ejemplares)",null,null,null,null,null,null,null,null,{"$f":"MID('Form. Apertura Caja Ahorro PN'!L91,1,2)","v":""},"Tarjeta de débito innominada y PIN (en sobre cerrado) "]
[]
[null,{"$f":"IF(INSTRUCCIONES!M4=\"Web\",\"X\",\"\")","v":""},"Formulario de solicitud de apertura de cuenta y servicios adicionales para personas naturales o empresas unipersonales.  (1 ejemplar)",null,null,null,null,null,null,null,null,{"$f":"IF(I10=\"ACEPTA\",\"X\",\"\")","v":""},"Certificado Seguro de protección de tarjeta de débito. (3 ejemplares)"]
[]
[null,null,null,null,null,null,null,null,null,null,null,{"$f":"IF(I14=\"NUEVA\",\"X\",\"\")","v":""},{"$f":"IF(INSTRUCCIONES!Y60=\"\",\"\",INSTRUCCIONES!Y60)","v":""}]
[]
[null,"Lugar: ",null,{"$f":"MID(INSTRUCCIONES!I80,1,50)","v":""},null,null,null,null,null,null,"Fecha: ",null,{"$f":"TODAY()","v":"2025-09-29"}]
[]
["(*)Estimado cliente, le informamos que debe remitir la siguiente documentación debidamente firmada al Banco a través del courrier que le hace entrega de la misma:\n- 1 ejemplar del contrato caja de ahorro.\n- 1 ejemplar del Formulario de solicitud de apertura de cuenta y servicios adicionales para personas naturales o empresas unipersonales. \n- 2 ejemplares del certificado del Seguro de protección de tarjeta de débito (en caso de haber adquirido el mismo)."]
["(*)Estimado cliente, le informamos que la tarjeta de débito innominada que le ha sido entregada puede ser utilizada en el exterior y para realizar compras por internet, estos servicios tienen la opción de ser habilitados o deshabilitados mediante la Banca por internet e-BISA, Bisa Responde o en cualquiera de nuestras oficinas a nivel nacional. \n\nLa tarjeta de débito se encuentra habilitada para realizar compras por internet en comercios de Bolivia, por un monto diario de Bs. 300.- y para pago por servicios TIGO por un monto diario de Bs. 1.000.- La habilitación de la tarjeta de débito para compras por internet en comercios del exterior o la modificación del límite diario para compras por internet aplicará para comercios de Bolivia y del Exterior por el periodo definido por el cliente. Transcurrido el periodo de habilitación de la tarjeta de débito para compras por internet o la modificación de límite diario del servicio de compras por internet, se habilitará nuevamente el monto diario de Bs. 300.- para comercios de Bolivia. Si usted no requiere esta habilitación, por favor solicitar la inhabilitación del servicio en cualquiera de nuestras oficinas o a través de Bisa Responde.\n\nLa tarjeta de débito se encuentra habilitada para realizar transacciones CONTACTLESS, sin el ingreso de PIN hasta un límite de Bs 150.- por operación y hasta un máximo de 4 transacciones al día.\n\nLe recomendamos, realizar periodicamente la revisión del extracto de su cuenta para verificar sus transacciones. \nLe informamos que el plazo para solicitar la revisión de transacciones no reconocidas o no satisfactorias, realizadas con Tarjeta de Débito por internet, debe efectuarse antes de los cien (100) de realizada la transacción. Asimismo, dichas solicitudes pueden ser presentadas en los canales del Banco a su disposición (Página Web, Plataforma de atención al cliente o Bisa Responde).\n* No se deberá superar las 35 transacciones por cada solicitud presentada. \n* El plazo estipulado en el presente comunicado no aplica al Seguro de Protección de Tarjeta de Débito. \n \nANTE CUALQUIER DUDA O CONSULTA CONTACTARSE CON BISA RESPONDE"]

{"sheet":"Form.PEP","index":5,"n_rows":45,"n_cols":14,"rows_kept":45,"cut":false,"hidden":true,"merged":[[44,10,44,12],[31,1,31,12],[32,1,32,12],[34,1,34,5],[34,6,34,12],[35,1,35,5],[35,6,35,12],[36,1,36,5],[36,6,36,12],[37,1,37,12],[43,10,43,12],[43,2,43,7],[44,2,44,7],[22,1,22,12],[19,2,19,3],[19,4,19,5],[19,6,19,7],[19,8,19,9],[19,10,19,12],[20,2,20,3],[20,4,20,5],[20,6,20,7],[20,8,20,9],[20,10,20,12],[21,2,21,3],[21,4,21,5],[21,6,21,7],[21,8,21,9],[21,10,21,12],[18,2,18,3],[18,4,18,5],[18,6,18,7],[18,8,18,9],[18,10,18,12],[17,2,17,3],[17,4,17,5],[17,6,17,7],[17,8,17,9],[17,10,17,12],[13,1,13,12],[14,2,14,3],[14,4,14,5],[14,6,14,7],[14,8,14,9],[14,10,14,12],[16,2,16,3],[16,4,16,5],[16,6,16,7],[16,8,16,9],[16,10,16,12],[15,2,15,3],[15,4,15,5],[15,6,15,7],[15,8,15,9],[15,10,15,12],[10,1,10,4],[10,5,10,8],[10,9,10,10],[10,11,10,12],[11,1,11,4],[11,5,11,8],[11,9,11,10],[11,11,11,12],[12,1,12,12],[1,1,1,12],[2,1,2,12],[3,1,3,3],[3,4,3,6],[3,7,3,9],[3,10,3,12],[9,1,9,4],[9,5,9,8],[9,9,9,10],[9,11,9,12],[4,1,4,3],[4,4,4,6],[4,7,4,9],[4,10,4,12],[5,1,5,12],[6,1,6,12],[7,1,8,4],[7,5,8,8],[7,9,7,12],[8,9,8,10],[8,11,8,12],[24,2,24,3],[24,4,24,5],[24,6,24,7],[24,8,24,9],[24,10,24,12],[23,2,23,3],[23,4,23,5],[23,6,23,7],[23,8,23,9],[23,10,23,12],[26,2,26,3],[26,4,26,5],[26,6,26,7],[26,8,26,9],[26,10,26,12],[25,2,25,3],[25,4,25,5],[25,6,25,7],[25,8,25,9],[25,10,25,12],[3,13,4,13],[7,13,11,13],[12,13,21,13],[31,13,38,13],[30,2,30,3],[30,4,30,5],[30,6,30,7],[30,8,30,9],[30,10,30,12],[29,2,29,3],[29,4,29,5],[29,6,29,7],[29,8,29,9],[29,10,29,12],[28,2,28,3],[28,4,28,5],[28,6,28,7],[28,8,28,9],[28,10,28,12],[27,2,27,3],[27,4,27,5],[27,6,27,7],[27,8,27,9],[27,10,27,12]]}
[]
[null,"Estimado cliente, por favor solicitamos su valiosa colaboración con el llenado de la información contenida en este formulario. De \nacuerdo con lo establecido en el Artículo Nº 54 del Instructivo Específico para Entidades de Intermediación Financiera, todo cliente PEP (Persona Expuesta Políticamente), sus familiares o personas cercanas, deben presentar información complementaria a su entidad financiera.\nGracias",null,null,null,null,null,null,null,null,null,null,null,"INSTRUCCIONES DE LLENADO DE FORMULARIO\n\nAntes de utilizar este formulario borre datos con el \"borrador\" del lado derecho superior del formulario."]
[null,"DATOS BÁSICOS DEL CLIENTE",null,null,null,null,null,null,null,null,null,null,null,"DATOS BÁSICOS DEL CLIENTE"]
[null,"1er Apellido ",null,null,"2do Apellido ",null,null,"Nombres",null,null,"Carnet de Identidad - Ext.",null,null,"1. Registrar: El primer apellido, segundo apellido, nombre(s) y documento de identidad de la persona solicitante de la apertura de cuenta."]
[null,null,null,null,null,null,null,null,null,null,{"$f":"'Form. Apertura Caja Ahorro PN'!$F$4","v":""}]
[null,"DATOS DEL CLIENTE PEP/ALLEGADO",null,null,null,null,null,null,null,null,null,null,null,"DATOS DEL CLIENTE PEP/ALLEGADO"]
[null,"a) Datos laborales ",null,null,null,null,null,null,null,null,null,null,null,"Completar los datos laborales de la persona solicitante de la apertura de cuenta.\n"]
[null,"Institución Pública/Partido Político/Organización del Estado/ Organización Internacional/Empresa Pública",null,null,null,"Cargo que ocupa u ocupó en los últimos 5 años",null,null,null,"Periodo Ejercido ",null,null,null,"1. Registrar: \n\na) Datos laborales: nombre de la institución pública, empresa pública, partido político, organización del estado u organismo internacional en la que trabajó o trabaja actualmente, el cargo que ejerció o ejerce y el periodo de ejercicio, indicando la fecha de inicio y fin. \n\nEn caso de haber trabajado en más de una institución pública, se deben registrar las mismas en el formulario, considerando las fechas en la cual fue designado para así poder determinar si el cliente se encuentra dentro el periodo establecido para ser considerado PEP (5 años).  "]
[null,null,null,null,null,null,null,null,null,"Fecha Inicio",null,"Fecha Final"]
[null,null,null,null,null,null,null,null,null,"dd/mm/aa",null,"dd/mm/aa"]
[null,null,null,null,null,null,null,null,null,"dd/mm/aa",null,"dd/mm/aa"]
[null,null,null,null,null,null,null,null,null,"dd/mm/aa",null,"dd/mm/aa"]
[null,"b) Allegados y Personas cercanas al PEP",null,null,null,null,null,null,null,null,null,null,null,"b) Allegados, la relación de los allegados del solicitante debe ser registrada hasta el segundo grado de consanguinidad (padres, hijos, hermanos, abuelos, bisabuelos, nietos) y segundo de afinidad (cónyuge/concubino(a), suegros, cuñados), debiendo registrarse la siguiente información del allegado:\n\n  Primer apellido, segundo apellido, nombres, documento de identidad.\n  Cargo, oficio u ocupación.\n  Lugar de Trabajo.\n  Grado de parentesco. "]
[null,"Cónyuge/concubino(a), parientes hasta el segundo grado de consanguinidad y el segundo grado de afinidad. Estrechos colaboradores y Asociados"]
[null,"Datos","1er. allegado ",null,"2do. allegado",null,"3er. allegado",null,"4to. allegado",null,"5to. allegado"]
[null,"1er Apellido  "]
[null,"2do Apellido "]
[null,"Nombres"]
[null,"Número de C.I. "]
[null,"Cargo/oficio/ocupación"]
[null,"Lugar de trabajo"]
[null,"Grado de parentesco"]
[null,"En caso de ser necesario registrar más allegados, desplegar las filas correspondientes presionando el signo \"+\", que se encuentra ubicado en el costado izquierdo del formulario."]
[null,"Datos","6to. allegado ",null,"7mo. allegado",null,"8vo. allegado",null,"9no. allegado",null,"10mo. allegado"]
[null,"1er Apellido  "]
[null,"2do Apellido "]
[null,"Nombres"]
[null,"Número de C.I. "]
[null,"Cargo/oficio/ocupación"]
[null,"Lugar de trabajo"]
[null,"Grado de parentesco"]
[null,"c) Relación con empresas",null,null,null,null,null,null,null,null,null,null,null,"c) Relación con Empresa, registrar esta información cuando el solicitante tenga participación en el capital social (ser socio), aporte o funja como administrador de la empresa, debiendo en este caso registrar la siguiente información:\n\n  Nombre de la Empresa.\n  Número de Identificación Tributaria NIT\n\nEste campo también debe ser llenado en caso de que el allegado familiar o persona cercana (descrito en el b) anterior) posea además una Empresa en la cual tenga participación en el capital social, aporte o sea administrador de la misma."]
[null,"Participación en el capital social, aporte o administrador"]
[null,"Nombre de la empresa",null,null,null,null,"NIT(*)"]
[]
[]
[]
[null,"El presente formulario tiene carácter de Declaración Jurada, por tanto declaro que la información registrada en el mismo es autentica y fidedigna."]
[]
[null,null,null,null,null,null,null,null,"Lugar:",{"$f":"IF(INSTRUCCIONES!$I$80=\"\",\"\",INSTRUCCIONES!$I$80)","v":""}]
[]
[]
[]
[null,null,null,null,null,null,null,null,"Fecha:",{"$f":"TODAY()","v":"2025-09-29"}]
[null,null,"Firma"]

{"sheet":"Titular 2 o firmante BJunior","index":6,"n_rows":31,"n_cols":19,"rows_kept":31,"cut":false,"hidden":true,"merged":[[28,7,28,14],[29,7,29,14],[30,4,30,6],[30,7,30,14],[3,5,3,20],[28,4,28,6],[29,4,29,6],[29,16,29,17],[26,7,26,14],[0,0,0,20],[6,0,9,20],[10,0,10,20],[13,0,13,20],[16,0,16,16],[4,12,4,13],[12,0,12,19],[11,0,11,19],[5,0,5,20],[3,0,3,4],[4,5,4,10],[15,0,15,20],[1,0,1,20],[2,12,2,16],[2,18,2,20],[4,14,4,20]]}
[]
["UTILIZAR EN CASO DE COTITULARES O FIRMANTES (PADRE, MADRE O TUTOR) PARA CUENTAS BISA JUNIOR."]
["DATOS DEL CLIENTE:",null,null,null,null,null,null,null,null,null,null,null,{"$f":"MID('Form. Apertura Caja Ahorro PN'!L2,1,35)","v":""},null,null,null,null,null,{"$f":"NOW()","v":45929.467308449071}]
["Nombre Titular 2 o \nFirmante ( para Bisa Junior) :",null,null,null,null,{"$f":"IF(INSTRUCCIONES!J26=\"\",\"\",INSTRUCCIONES!J26)","v":""}]
["Doc. Identidad y extensión: ",null,null,null,null,{"$f":"IF(INSTRUCCIONES!J27=\"\",\"\",INSTRUCCIONES!J27)","v":""},null,null,null,null,null,{"$f":"IF(INSTRUCCIONES!Q27=\"\",\"\",INSTRUCCIONES!Q27)","v":""},"Número de Cuenta:",null,{"$f":"IF(INSTRUCCIONES!Q51=\"\",\"\",INSTRUCCIONES!Q51)","v":""}]
["AUTORIZACIONES"]
["•  El (La) (Los) titular(es) o apoderado(s) y para el caso de Bisa Junior el padre, madre o tutor(es) y para el menor titular de la cuenta,  autoriza(mos) al Banco BISA S.A. a consultar en cualquier momento los datos en el Registro Único de Identificación administrado por el Servicio General de Identificación Personal (SEGIP) e instituciones y agencias de control y/o de supervisión así como de otras fuentes que estime necesarias.\n• Sólo en caso de requerir un sobregiro en cuenta corriente, el cliente autoriza al Banco a realizar la consulta en la Central de Información Crediticia (CIC) de la Autoridad de Supervisión del Sistema Financiero (ASFI), al informe confidencial del Buro de Información (BI) que corresponda.\n• Autorizo al Banco BISA S.A. y acepto que me envien información por cualquiera de los datos referenciados en esta cuenta."]
[]
[]
[]
["DILIGENCIA ADICIONAL: (Para BISA JUNIOR completar esta sección con información del padre, madre o tutor)."]
["• ¿Es portador de tarjeta verde, pasaporte norteamericano, nacido o hijo de ciudadano de los Estados Unidos de Norteamérica?"]
["• ¿Ha permanecido más de 180 días en un año o promedio de 120 días al año durante los últimos 3 años en los Estados Unidos de Norteamérica?"]
["INFORMACIÓN ADICIONAL: (Para BISA JUNIOR completar esta sección con información del padre, madre o tutor, únicamente si la respuesta es afirmativa)."]
["Persona Políticamente expuesta (PEPs):"]
[]
[]
[]
[]
[]
[]
[]
[]
[]
[]
[]
[null,null,null,null,null,null,null,"Firma Titular 2 o  Firmante para Bisa Junior "]
[]
[null,null,null,null,"Nombre completo: ",null,null,{"$f":"IF(F4=\"\",\"\",F4)","v":""}]
[null,null,null,null,"Doc. Identidad: ",null,null,{"$f":"\"\"&L5&\" \"&F5&\" \"","v":"  "}]
[null,null,null,null,"Fecha: ",null,null,{"$f":"TODAY()","v":"2025-09-29"}]

{"sheet":"Form.PEP_Titular2","index":7,"n_rows":45,"n_cols":14,"rows_kept":45,"cut":false,"hidden":true,"merged":[[43,2,43,7],[44,2,44,7],[21,2,21,3],[21,4,21,5],[21,6,21,7],[21,8,21,9],[21,10,21,12],[44,10,44,12],[31,1,31,12],[32,1,32,12],[34,1,34,5],[34,6,34,12],[35,1,35,5],[35,6,35,12],[36,1,36,5],[36,6,36,12],[37,1,37,12],[43,10,43,12],[24,2,24,3],[24,4,24,5],[24,6,24,7],[24,8,24,9],[24,10,24,12],[22,1,22,12],[19,2,19,3],[19,4,19,5],[19,6,19,7],[19,8,19,9],[19,10,19,12],[20,2,20,3],[20,4,20,5],[20,6,20,7],[20,8,20,9],[20,10,20,12],[18,2,18,3],[18,4,18,5],[18,6,18,7],[18,8,18,9],[18,10,18,12],[17,2,17,3],[17,4,17,5],[17,6,17,7],[17,8,17,9],[17,10,17,12],[13,1,13,12],[14,2,14,3],[14,4,14,5],[14,6,14,7],[14,8,14,9],[14,10,14,12],[16,2,16,3],[16,4,16,5],[16,6,16,7],[16,8,16,9],[16,10,16,12],[15,2,15,3],[15,4,15,5],[15,6,15,7],[15,8,15,9],[15,10,15,12],[10,1,10,4],[10,5,10,8],[10,9,10,10],[10,11,10,12],[11,1,11,4],[11,5,11,8],[11,9,11,10],[11,11,11,12],[12,1,12,12],[1,1,1,12],[2,1,2,12],[3,1,3,3],[3,4,3,6],[3,7,3,9],[3,10,3,12],[9,1,9,4],[9,5,9,8],[9,9,9,10],[9,11,9,12],[4,1,4,3],[4,4,4,6],[4,7,4,9],[4,10,4,12],[5,1,5,12],[6,1,6,12],[7,1,8,4],[7,5,8,8],[7,9,7,12],[8,9,8,10],[8,11,8,12],[23,2,23,3],[23,4,23,5],[23,6,23,7],[23,8,23,9],[23,10,23,12],[26,2,26,3],[26,4,26,5],[26,6,26,7],[26,8,26,9],[26,10,26,12],[25,2,25,3],[25,4,25,5],[25,6,25,7],[25,8,25,9],[25,10,25,12],[3,13,4,13],[7,13,11,13],[12,13,21,13],[31,13,38,13],[30,2,30,3],[30,4,30,5],[30,6,30,7],[30,8,30,9],[30,10,30,12],[29,2,29,3],[29,4,29,5],[29,6,29,7],[29,8,29,9],[29,10,29,12],[28,2,28,3],[28,4,28,5],[28,6,28,7],[28,8,28,9],[28,10,28,12],[27,2,27,3],[27,4,27,5],[27,6,27,7],[27,8,27,9],[27,10,27,12]]}
[]
[null,"Estimado cliente, por favor solicitamos su valiosa colaboración con el llenado de la información contenida en este formulario. De \nacuerdo con lo establecido en el Artículo Nº 54 del Instructivo Específico para Entidades de Intermediación Financiera, todo cliente PEP (Persona Expuesta Políticamente), sus familiares o personas cercanas, deben presentar información complementaria a su entidad financiera.\nGracias",null,null,null,null,null,null,null,null,null,null,null,"INSTRUCCIONES DE LLENADO DE FORMULARIO\n\nAntes de utilizar este formulario borre datos con el \"borrador\" del lado derecho superior del formulario."]
[null,"DATOS BÁSICOS DEL CLIENTE",null,null,null,null,null,null,null,null,null,null,null,"DATOS BÁSICOS DEL CLIENTE"]
[null,"1er Apellido ",null,null,"2do Apellido ",null,null,"Nombres",null,null,"Carnet de Identidad - Ext.",null,null,"1. Registrar: El primer apellido, segundo apellido, nombre(s) y documento de identidad de la persona solicitante de la apertura de cuenta."]
[null,null,null,null,null,null,null,null,null,null,{"$f":"'Form. Apertura Caja Ahorro PN'!$F$4","v":""}]
[null,"DATOS DEL CLIENTE PEP/ALLEGADO",null,null,null,null,null,null,null,null,null,null,null,"DATOS DEL CLIENTE PEP/ALLEGADO"]
[null,"a) Datos laborales ",null,null,null,null,null,null,null,null,null,null,null,"Completar los datos laborales de la persona solicitante de la apertura de cuenta.\n"]
[null,"Institución Pública/Partido Político/Organización del Estado/ Organización Internacional/Empresa Pública",null,null,null,"Cargo que ocupa u ocupó en los últimos 5 años",null,null,null,"Periodo Ejercido ",null,null,null,"1. Registrar: \n\na) Datos laborales: nombre de la institución pública, empresa pública, partido político, organización del estado u organismo internacional en la que trabajó o trabaja actualmente, el cargo que ejerció o ejerce y el periodo de ejercicio, indicando la fecha de inicio y fin. \n\nEn caso de haber trabajado en más de una institución pública, se deben registrar las mismas en el formulario, considerando las fechas en la cual fue designado para así poder determinar si el cliente se encuentra dentro el periodo establecido para ser considerado PEP (5 años).  "]
[null,null,null,null,null,null,null,null,null,"Fecha Inicio",null,"Fecha Final"]
[null,null,null,null,null,null,null,null,null,"dd/mm/aa",null,"dd/mm/aa"]
[null,null,null,null,null,null,null,null,null,"dd/mm/aa",null,"dd/mm/aa"]
[null,null,null,null,null,null,null,null,null,"dd/mm/aa",null,"dd/mm/aa"]
[null,"b) Allegados y Personas cercanas al PEP",null,null,null,null,null,null,null,null,null,null,null,"b) Allegados, la relación de los allegados del solicitante debe ser registrada hasta el segundo grado de consanguinidad (padres, hijos, hermanos, abuelos, bisabuelos, nietos) y segundo de afinidad (cónyuge/concubino(a), suegros, cuñados), debiendo registrarse la siguiente información del allegado:\n\n  Primer apellido, segundo apellido, nombres, documento de identidad.\n  Cargo, oficio u ocupación.\n  Lugar de Trabajo.\n  Grado de parentesco. "]
[null,"Cónyuge/concubino(a), parientes hasta el segundo grado de consanguinidad y el segundo grado de afinidad. Estrechos colaboradores y Asociados"]
[null,"Datos","1er. allegado ",null,"2do. allegado",null,"3er. allegado",null,"4to. allegado",null,"5to. allegado"]
[null,"1er Apellido  "]
[null,"2do Apellido "]
[null,"Nombres"]
[null,"Número de C.I. "]
[null,"Cargo/oficio/ocupación"]
[null,"Lugar de trabajo"]
[null,"Grado de parentesco"]
[null,"En caso de ser necesario registrar más allegados, desplegar las filas correspondientes presionando el signo \"+\", que se encuentra ubicado en el costado izquierdo del formulario."]
[null,"Datos","6to. allegado ",null,"7mo. allegado",null,"8vo. allegado",null,"9no. allegado",null,"10mo. allegado"]
[null,"1er Apellido  "]
[null,"2do Apellido "]
[null,"Nombres"]
[null,"Número de C.I. "]
[null,"Cargo/oficio/ocupación"]
[null,"Lugar de trabajo"]
[null,"Grado de parentesco"]
[null,"c) Relación con empresas",null,null,null,null,null,null,null,null,null,null,null,"c) Relación con Empresa, registrar esta información cuando el solicitante tenga participación en el capital social (ser socio), aporte o funja como administrador de la empresa, debiendo en este caso registra la siguiente información:\n\n  Nombre de la Empresa.\n  Número de Identificación Tributaria NIT\n\nEste campo también debe ser llenado en caso de que el allegado familiar o persona cercana (descrito en el inciso anterior) posea además una Empresa en la cual tenga participación en el capital social, aporte o sea administrador de la misma."]
[null,"Participación en el capital social, aporte o administrador"]
[null,"Nombre de la empresa",null,null,null,null,"NIT(*)"]
[]
[]
[]
[null,"El presente formulario tiene carácter de Declaración Jurada, por tanto declaro que la información registrada en el mismo es autentica y fidedigna."]
[]
[null,null,null,null,null,null,null,null,"Lugar:",{"$f":"IF(INSTRUCCIONES!$I$80=\"\",\"\",INSTRUCCIONES!$I$80)","v":""}]
[]
[]
[]
[null,null,null,null,null,null,null,null,"Fecha:",{"$f":"TODAY()","v":"2025-09-29"}]
[null,null,"Firma"]

{"sheet":"Titular 3 o firmante BJunior","index":8,"n_rows":30,"n_cols":19,"rows_kept":30,"cut":false,"hidden":true,"merged":[[29,4,29,6],[27,7,27,14],[28,7,28,14],[29,7,29,14],[0,0,0,20],[1,0,1,20],[3,0,3,4],[3,5,3,20],[4,5,4,10],[2,12,2,16],[2,18,2,20],[4,12,4,13],[4,14,4,20],[5,0,5,20],[6,0,9,20],[10,0,10,20],[11,0,11,19],[28,16,28,17],[12,0,12,19],[13,0,13,20],[16,0,16,16],[15,0,15,20],[25,7,25,14],[27,4,27,6],[28,4,28,6]]}
[]
["UTILIZAR EN CASO DE COTITULARES O FIRMANTES (PADRE, MADRE O TUTOR) PARA CUENTAS BISA JUNIOR."]
["DATOS DEL CLIENTE:",null,null,null,null,null,null,null,null,null,null,null,{"$f":"MID('Form. Apertura Caja Ahorro PN'!L2,1,35)","v":""},null,null,null,null,null,{"$f":"NOW()","v":45929.467308449071}]
["Nombre Titular 3 o \nFirmante ( para Bisa Junior) :",null,null,null,null,{"$f":"IF(INSTRUCCIONES!J28=\"\",\"\",INSTRUCCIONES!J28)","v":""}]
["Doc. Identidad y extensión: ",null,null,null,null,{"$f":"IF(INSTRUCCIONES!J29=\"\",\"\",INSTRUCCIONES!J29)","v":""},null,null,null,null,null,{"$f":"IF(INSTRUCCIONES!Q29=\"\",\"\",INSTRUCCIONES!Q29)","v":""},"Número de Cuenta:",null,{"$f":"IF(INSTRUCCIONES!Q51=\"\",\"\",INSTRUCCIONES!Q51)","v":""}]
["AUTORIZACIONES"]
["•  El (La) (Los) titular(es) o apoderado(s) y para el caso de Bisa Junior el padre, madre o tutor(es) y para el menor titular de la cuenta,  autoriza(mos) al Banco BISA S.A. a consultar en cualquier momento los datos en el Registro Único de Identificación administrado por el Servicio General de Identificación Personal (SEGIP) e instituciones y agencias de control y/o de supervisión así como de otras fuentes que estime necesarias.\n• Sólo en caso de requerir un sobregiro en cuenta corriente, el cliente autoriza al Banco a realizar la consulta en la Central de Información Crediticia (CIC) de la Autoridad de Supervisión del Sistema Financiero (ASFI), al informe confidencial del Buro de Información (BI) que corresponda.\n• Autorizo al Banco BISA S.A. y acepto que me envien información por cualquiera de los datos referenciados en esta cuenta."]
[]
[]
[]
["DILIGENCIA ADICIONAL: (Para BISA JUNIOR completar esta sección con información del padre, madre o tutor)."]
["• ¿Es portador de tarjeta verde, pasaporte norteamericano, nacido o hijo de ciudadano de los Estados Unidos de Norteamérica?"]
["• ¿Ha permanecido más de 180 días en un año o promedio de 120 días al año durante los últimos 3 años en los Estados Unidos de Norteamérica?"]
["INFORMACIÓN ADICIONAL: (Para BISA JUNIOR completar esta sección con información del padre, madre o tutor, únicamente si la respuesta es afirmativa)."]
["Persona Políticamente expuesta (PEPs):"]
[]
[]
[]
[]
[]
[]
[]
[]
[]
[]
[null,null,null,null,null,null,null,"Firma Titular 3 o  Firmante para Bisa Junior "]
[]
[null,null,null,null,"Nombre completo: ",null,null,{"$f":"F4","v":""}]
[null,null,null,null,"Doc. Identidad: ",null,null,{"$f":"\"\"&L5&\" \"&F5&\" \"","v":"  "}]
[null,null,null,null,"Fecha: ",null,null,{"$f":"TODAY()","v":"2025-09-29"}]

{"sheet":"Form.PEP_Titular3","index":9,"n_rows":45,"n_cols":14,"rows_kept":45,"cut":false,"hidden":true,"merged":[[43,2,43,7],[44,2,44,7],[21,2,21,3],[21,4,21,5],[21,6,21,7],[21,8,21,9],[21,10,21,12],[44,10,44,12],[31,1,31,12],[32,1,32,12],[34,1,34,5],[34,6,34,12],[35,1,35,5],[35,6,35,12],[36,1,36,5],[36,6,36,12],[37,1,37,12],[43,10,43,12],[24,2,24,3],[24,4,24,5],[24,6,24,7],[24,8,24,9],[24,10,24,12],[22,1,22,12],[19,2,19,3],[19,4,19,5],[19,6,19,7],[19,8,19,9],[19,10,19,12],[20,2,20,3],[20,4,20,5],[20,6,20,7],[20,8,20,9],[20,10,20,12],[18,2,18,3],[18,4,18,5],[18,6,18,7],[18,8,18,9],[18,10,18,12],[17,2,17,3],[17,4,17,5],[17,6,17,7],[17,8,17,9],[17,10,17,12],[13,1,13,12],[14,2,14,3],[14,4,14,5],[14,6,14,7],[14,8,14,9],[14,10,14,12],[16,2,16,3],[16,4,16,5],[16,6,16,7],[16,8,16,9],[16,10,16,12],[15,2,15,3],[15,4,15,5],[15,6,15,7],[15,8,15,9],[15,10,15,12],[10,1,10,4],[10,5,10,8],[10,9,10,10],[10,11,10,12],[11,1,11,4],[11,5,11,8],[11,9,11,10],[11,11,11,12],[12,1,12,12],[1,1,1,12],[2,1,2,12],[3,1,3,3],[3,4,3,6],[3,7,3,9],[3,10,3,12],[9,1,9,4],[9,5,9,8],[9,9,9,10],[9,11,9,12],[4,1,4,3],[4,4,4,6],[4,7,4,9],[4,10,4,12],[5,1,5,12],[6,1,6,12],[7,1,8,4],[7,5,8,8],[7,9,7,12],[8,9,8,10],[8,11,8,12],[23,2,23,3],[23,4,23,5],[23,6,23,7],[23,8,23,9],[23,10,23,12],[26,2,26,3],[26,4,26,5],[26,6,26,7],[26,8,26,9],[26,10,26,12],[25,2,25,3],[25,4,25,5],[25,6,25,7],[25,8,25,9],[25,10,25,12],[3,13,4,13],[7,13,11,13],[12,13,21,13],[31,13,38,13],[30,2,30,3],[30,4,30,5],[30,6,30,7],[30,8,30,9],[30,10,30,12],[29,2,29,3],[29,4,29,5],[29,6,29,7],[29,8,29,9],[29,10,29,12],[28,2,28,3],[28,4,28,5],[28,6,28,7],[28,8,28,9],[28,10,28,12],[27,2,27,3],[27,4,27,5],[27,6,27,7],[27,8,27,9],[27,10,27,12]]}
[]
[null,"Estimado cliente, por favor solicitamos su valiosa colaboración con el llenado de la información contenida en este formulario. De \nacuerdo con lo establecido en el Artículo Nº 54 del Instructivo Específico para Entidades de Intermediación Financiera, todo cliente PEP (Persona Expuesta Políticamente), sus familiares o personas cercanas, deben presentar información complementaria a su entidad financiera.\nGracias",null,null,null,null,null,null,null,null,null,null,null,"INSTRUCCIONES DE LLENADO DE FORMULARIO\n\nAntes de utilizar este formulario borre datos con el \"borrador\" del lado derecho superior del formulario."]
[null,"DATOS BÁSICOS DEL CLIENTE",null,null,null,null,null,null,null,null,null,null,null,"DATOS BÁSICOS DEL CLIENTE"]
[null,"1er Apellido ",null,null,"2do Apellido ",null,null,"Nombres",null,null,"Carnet de Identidad - Ext.",null,null,"1. Registrar: El primer apellido, segundo apellido, nombre(s) y documento de identidad de la persona solicitante de la apertura de cuenta."]
[null,null,null,null,null,null,null,null,null,null,{"$f":"'Form. Apertura Caja Ahorro PN'!$F$4","v":""}]
[null,"DATOS DEL CLIENTE PEP/ALLEGADO",null,null,null,null,null,null,null,null,null,null,null,"DATOS DEL CLIENTE PEP/ALLEGADO"]
[null,"a) Datos laborales ",null,null,null,null,null,null,null,null,null,null,null,"Completar los datos laborales de la persona solicitante de la apertura de cuenta.\n"]
[null,"Institución Pública/Partido Político/Organización del Estado/ Organización Internacional/Empresa Pública",null,null,null,"Cargo que ocupa u ocupó en los últimos 5 años",null,null,null,"Periodo Ejercido ",null,null,null,"1. Registrar: \n\na) Datos laborales: nombre de la institución pública, empresa pública, partido político, organización del estado u organismo internacional en la que trabajó o trabaja actualmente, el cargo que ejerció o ejerce y el periodo de ejercicio, indicando la fecha de inicio y fin. \n\nEn caso de haber trabajado en más de una institución pública, se deben registrar las mismas en el formulario, considerando las fechas en la cual fue designado para así poder determinar si el cliente se encuentra dentro el periodo establecido para ser considerado PEP (5 años).  "]
[null,null,null,null,null,null,null,null,null,"Fecha Inicio",null,"Fecha Final"]
[null,null,null,null,null,null,null,null,null,"dd/mm/aa",null,"dd/mm/aa"]
[null,null,null,null,null,null,null,null,null,"dd/mm/aa",null,"dd/mm/aa"]
[null,null,null,null,null,null,null,null,null,"dd/mm/aa",null,"dd/mm/aa"]
[null,"b) Allegados y Personas cercanas al PEP",null,null,null,null,null,null,null,null,null,null,null,"b) Allegados, la relación de los allegados del solicitante debe ser registrada hasta el segundo grado de consanguinidad (padres, hijos, hermanos, abuelos, bisabuelos, nietos) y segundo de afinidad (cónyuge/concubino(a), suegros, cuñados), debiendo registrarse la siguiente información del allegado:\n\n  Primer apellido, segundo apellido, nombres, documento de identidad.\n  Cargo, oficio u ocupación.\n  Lugar de Trabajo.\n  Grado de parentesco. "]
[null,"Cónyuge/concubino(a), parientes hasta el segundo grado de consanguinidad y el segundo grado de afinidad. Estrechos colaboradores y Asociados"]
[null,"Datos","1er. allegado ",null,"2do. allegado",null,"3er. allegado",null,"4to. allegado",null,"5to. allegado"]
[null,"1er Apellido  "]
[null,"2do Apellido "]
[null,"Nombres"]
[null,"Número de C.I. "]
[null,"Cargo/oficio/ocupación"]
[null,"Lugar de trabajo"]
[null,"Grado de parentesco"]
[null,"En caso de ser necesario registrar más allegados, desplegar las filas correspondientes presionando el signo \"+\", que se encuentra ubicado en el costado izquierdo del formulario."]
[null,"Datos","6to. allegado ",null,"7mo. allegado",null,"8vo. allegado",null,"9no. allegado",null,"10mo. allegado"]
[null,"1er Apellido  "]
[null,"2do Apellido "]
[null,"Nombres"]
[null,"Número de C.I. "]
[null,"Cargo/oficio/ocupación"]
[null,"Lugar de trabajo"]
[null,"Grado de parentesco"]
[null,"c) Relación con empresas",null,null,null,null,null,null,null,null,null,null,null,"c) Relación con Empresa, registrar esta información cuando el solicitante tenga participación en el capital social (ser socio), aporte o funja como administrador de la empresa, debiendo en este caso registra la siguiente información:\n\n  Nombre de la Empresa.\n  Número de Identificación Tributaria NIT\n\nEste campo también debe ser llenado en caso de que el allegado familiar o persona cercana (descrito en el inciso anterior) posea además una Empresa en la cual tenga participación en el capital social, aporte o sea administrador de la misma."]
[null,"Participación en el capital social, aporte o administrador"]
[null,"Nombre de la empresa",null,null,null,null,"NIT(*)"]
[]
[]
[]
[null,"El presente formulario tiene carácter de Declaración Jurada, por tanto declaro que la información registrada en el mismo es autentica y fidedigna."]
[]
[null,null,null,null,null,null,null,null,"Lugar:",{"$f":"IF(INSTRUCCIONES!$I$80=\"\",\"\",INSTRUCCIONES!$I$80)","v":""}]
[]
[]
[]
[null,null,null,null,null,null,null,null,"Fecha:",{"$f":"TODAY()","v":"2025-09-29"}]
[null,null,"Firma"]

{"sheet":"Titular 4 y demás cotitulares","index":10,"n_rows":30,"n_cols":19,"rows_kept":30,"cut":false,"hidden":true,"merged":[[0,0,0,20],[1,0,1,20],[3,0,3,4],[3,5,3,20],[4,5,4,10],[2,12,2,16],[2,18,2,20],[4,12,4,13],[4,14,4,20],[29,4,29,6],[27,7,27,14],[28,7,28,14],[29,7,29,14],[5,0,5,20],[6,0,9,20],[10,0,10,20],[11,0,11,19],[28,16,28,17],[12,0,12,19],[13,0,13,20],[16,0,16,16],[15,0,15,20],[25,7,25,14],[27,4,27,6],[28,4,28,6]]}
[]
["UTILIZAR EN CASO DE EXISTIR 4 COTITULARES  "]
["DATOS DEL CLIENTE:",null,null,null,null,null,null,null,null,null,null,null,{"$f":"MID('Form. Apertura Caja Ahorro PN'!L2,1,35)","v":""},null,null,null,null,null,{"$f":"NOW()","v":45929.467308449071}]
["Nombre Titular 4 o Firmante:",null,null,null,null,{"$f":"IF(INSTRUCCIONES!J30=\"\",\"\",INSTRUCCIONES!J30)","v":""}]
["Doc. Identidad y extensión: ",null,null,null,null,{"$f":"IF(INSTRUCCIONES!J31=\"\",\"\",INSTRUCCIONES!J31)","v":""},null,null,null,null,null,{"$f":"IF(INSTRUCCIONES!Q31=\"\",\"\",INSTRUCCIONES!Q31)","v":""},"Número de Cuenta:",null,{"$f":"IF(INSTRUCCIONES!Q51=\"\",\"\",INSTRUCCIONES!Q51)","v":""}]
["AUTORIZACIONES"]
["•  El (La) (Los) titular(es) o apoderado(s) y para el caso de Bisa Junior el padre, madre o tutor(es) y para el menor titular de la cuenta,  autoriza(mos) al Banco BISA S.A. a consultar en cualquier momento los datos en el Registro Único de Identificación administrado por el Servicio General de Identificación Personal (SEGIP) e instituciones y agencias de control y/o de supervisión así como de otras fuentes que estime necesarias.\n• Sólo en caso de requerir un sobregiro en cuenta corriente, el cliente autoriza al Banco a realizar la consulta en la Central de Información Crediticia (CIC) de la Autoridad de Supervisión del Sistema Financiero (ASFI), al informe confidencial del Buro de Información (BI) que corresponda.\n• Autorizo al Banco BISA S.A. y acepto que me envien información por cualquiera de los datos referenciados en esta cuenta."]
[]
[]
[]
["DILIGENCIA ADICIONAL: (Para BISA JUNIOR completar esta sección con información del padre, madre o tutor)."]
["• ¿Es portador de tarjeta verde, pasaporte norteamericano, nacido o hijo de ciudadano de los Estados Unidos de Norteamérica?"]
["• ¿Ha permanecido más de 180 días en un año o promedio de 120 días al año durante los últimos 3 años en los Estados Unidos de Norteamérica?"]
["INFORMACIÓN ADICIONAL: (Completar esta sección únicamente cuando la siguiente pregunta tenga una respuesta afirmativa)."]
["Persona Políticamente expuesta (PEPs):"]
[]
[]
[]
[]
[]
[]
[]
[]
[]
[]
[null,null,null,null,null,null,null,"Firma Titular 4 o  Firmante  "]
[]
[null,null,null,null,"Nombre completo: ",null,null,{"$f":"F4","v":""}]
[null,null,null,null,"Doc. Identidad: ",null,null,{"$f":"\"\"&L5&\" \"&F5&\" \"","v":"  "}]
[null,null,null,null,"Fecha: ",null,null,{"$f":"TODAY()","v":"2025-09-29"}]

{"sheet":"Form.PEP_Titular4","index":11,"n_rows":45,"n_cols":14,"rows_kept":45,"cut":false,"hidden":true,"merged":[[43,2,43,7],[44,2,44,7],[21,2,21,3],[21,4,21,5],[21,6,21,7],[21,8,21,9],[21,10,21,12],[44,10,44,12],[31,1,31,12],[32,1,32,12],[34,1,34,5],[34,6,34,12],[35,1,35,5],[35,6,35,12],[36,1,36,5],[36,6,36,12],[37,1,37,12],[43,10,43,12],[24,2,24,3],[24,4,24,5],[24,6,24,7],[24,8,24,9],[24,10,24,12],[22,1,22,12],[19,2,19,3],[19,4,19,5],[19,6,19,7],[19,8,19,9],[19,10,19,12],[20,2,20,3],[20,4,20,5],[20,6,20,7],[20,8,20,9],[20,10,20,12],[18,2,18,3],[18,4,18,5],[18,6,18,7],[18,8,18,9],[18,10,18,12],[17,2,17,3],[17,4,17,5],[17,6,17,7],[17,8,17,9],[17,10,17,12],[13,1,13,12],[14,2,14,3],[14,4,14,5],[14,6,14,7],[14,8,14,9],[14,10,14,12],[16,2,16,3],[16,4,16,5],[16,6,16,7],[16,8,16,9],[16,10,16,12],[15,2,15,3],[15,4,15,5],[15,6,15,7],[15,8,15,9],[15,10,15,12],[10,1,10,4],[10,5,10,8],[10,9,10,10],[10,11,10,12],[11,1,11,4],[11,5,11,8],[11,9,11,10],[11,11,11,12],[12,1,12,12],[1,1,1,12],[2,1,2,12],[3,1,3,3],[3,4,3,6],[3,7,3,9],[3,10,3,12],[9,1,9,4],[9,5,9,8],[9,9,9,10],[9,11,9,12],[4,1,4,3],[4,4,4,6],[4,7,4,9],[4,10,4,12],[5,1,5,12],[6,1,6,12],[7,1,8,4],[7,5,8,8],[7,9,7,12],[8,9,8,10],[8,11,8,12],[23,2,23,3],[23,4,23,5],[23,6,23,7],[23,8,23,9],[23,10,23,12],[26,2,26,3],[26,4,26,5],[26,6,26,7],[26,8,26,9],[26,10,26,12],[25,2,25,3],[25,4,25,5],[25,6,25,7],[25,8,25,9],[25,10,25,12],[3,13,4,13],[7,13,11,13],[12,13,21,13],[31,13,38,13],[30,2,30,3],[30,4,30,5],[30,6,30,7],[30,8,30,9],[30,10,30,12],[29,2,29,3],[29,4,29,5],[29,6,29,7],[29,8,29,9],[29,10,29,12],[28,2,28,3],[28,4,28,5],[28,6,28,7],[28,8,28,9],[28,10,28,12],[27,2,27,3],[27,4,27,5],[27,6,27,7],[27,8,27,9],[27,10,27,12]]}
[]
[null,"Estimado cliente, por favor solicitamos su valiosa colaboración con el llenado de la información contenida en este formulario. De \nacuerdo con lo establecido en el Artículo Nº 54 del Instructivo Específico para Entidades de Intermediación Financiera, todo cliente PEP (Persona Expuesta Políticamente), sus familiares o personas cercanas, deben presentar información complementaria a su entidad financiera.\nGracias",null,null,null,null,null,null,null,null,null,null,null,"INSTRUCCIONES DE LLENADO DE FORMULARIO\n\nAntes de utilizar este formulario borre datos con el \"borrador\" del lado derecho superior del formulario."]
[null,"DATOS BÁSICOS DEL CLIENTE",null,null,null,null,null,null,null,null,null,null,null,"DATOS BÁSICOS DEL CLIENTE"]
[null,"1er Apellido ",null,null,"2do Apellido ",null,null,"Nombres",null,null,"Carnet de Identidad - Ext.",null,null,"1. Registrar: El primer apellido, segundo apellido, nombre(s) y documento de identidad de la persona solicitante de la apertura de cuenta."]
[null,null,null,null,null,null,null,null,null,null,{"$f":"'Form. Apertura Caja Ahorro PN'!$F$4","v":""}]
[null,"DATOS DEL CLIENTE PEP/ALLEGADO",null,null,null,null,null,null,null,null,null,null,null,"DATOS DEL CLIENTE PEP/ALLEGADO"]
[null,"a) Datos laborales ",null,null,null,null,null,null,null,null,null,null,null,"Completar los datos laborales de la persona solicitante de la apertura de cuenta.\n"]
[null,"Institución Pública/Partido Político/Organización del Estado/ Organización Internacional/Empresa Pública",null,null,null,"Cargo que ocupa u ocupó en los últimos 5 años",null,null,null,"Periodo Ejercido ",null,null,null,"1. Registrar: \n\na) Datos laborales: nombre de la institución pública, empresa pública, partido político, organización del estado u organismo internacional en la que trabajó o trabaja actualmente, el cargo que ejerció o ejerce y el periodo de ejercicio, indicando la fecha de inicio y fin. \n\nEn caso de haber trabajado en más de una institución pública, se deben registrar las mismas en el formulario, considerando las fechas en la cual fue designado para así poder determinar si el cliente se encuentra dentro el periodo establecido para ser considerado PEP (5 años).  "]
[null,null,null,null,null,null,null,null,null,"Fecha Inicio",null,"Fecha Final"]
[null,null,null,null,null,null,null,null,null,"dd/mm/aa",null,"dd/mm/aa"]
[null,null,null,null,null,null,null,null,null,"dd/mm/aa",null,"dd/mm/aa"]
[null,null,null,null,null,null,null,null,null,"dd/mm/aa",null,"dd/mm/aa"]
[null,"b) Allegados y Personas cercanas al PEP",null,null,null,null,null,null,null,null,null,null,null,"b) Allegados, la relación de los allegados del solicitante debe ser registrada hasta el segundo grado de consanguinidad (padres, hijos, hermanos, abuelos, bisabuelos, nietos) y segundo de afinidad (cónyuge/concubino(a), suegros, cuñados), debiendo registrarse la siguiente información del allegado:\n\n  Primer apellido, segundo apellido, nombres, documento de identidad.\n  Cargo, oficio u ocupación.\n  Lugar de Trabajo.\n  Grado de parentesco. "]
[null,"Cónyuge/concubino(a), parientes hasta el segundo grado de consanguinidad y el segundo grado de afinidad. Estrechos colaboradores y Asociados"]
[null,"Datos","1er. allegado ",null,"2do. allegado",null,"3er. allegado",null,"4to. allegado",null,"5to. allegado"]
[null,"1er Apellido  "]
[null,"2do Apellido "]
[null,"Nombres"]
[null,"Número de C.I. "]
[null,"Cargo/oficio/ocupación"]
[null,"Lugar de trabajo"]
[null,"Grado de parentesco"]
[null,"En caso de ser necesario registrar más allegados, desplegar las filas correspondientes presionando el signo \"+\", que se encuentra ubicado en el costado izquierdo del formulario."]
[null,"Datos","6to. allegado ",null,"7mo. allegado",null,"8vo. allegado",null,"9no. allegado",null,"10mo. allegado"]
[null,"1er Apellido  "]
[null,"2do Apellido "]
[null,"Nombres"]
[null,"Número de C.I. "]
[null,"Cargo/oficio/ocupación"]
[null,"Lugar de trabajo"]
[null,"Grado de parentesco"]
[null,"c) Relación con empresas",null,null,null,null,null,null,null,null,null,null,null,"c) Relación con Empresa, registrar esta información cuando el solicitante tenga participación en el capital social (ser socio), aporte o funja como administrador de la empresa, debiendo en este caso registra la siguiente información:\n\n  Nombre de la Empresa.\n  Número de Identificación Tributaria NIT\n\nEste campo también debe ser llenado en caso de que el allegado familiar o persona cercana (descrito en el inciso anterior) posea además una Empresa en la cual tenga participación en el capital social, aporte o sea administrador de la misma."]
[null,"Participación en el capital social, aporte o administrador"]
[null,"Nombre de la empresa",null,null,null,null,"NIT(*)"]
[]
[]
[]
[null,"El presente formulario tiene carácter de Declaración Jurada, por tanto declaro que la información registrada en el mismo es autentica y fidedigna."]
[]
[null,null,null,null,null,null,null,null,"Lugar:",{"$f":"IF(INSTRUCCIONES!$I$80=\"\",\"\",INSTRUCCIONES!$I$80)","v":""}]
[]
[]
[]
[null,null,null,null,null,null,null,null,"Fecha:",{"$f":"TODAY()","v":"2025-09-29"}]
[null,null,"Firma"]

{"sheet":"Titular 5 y demás cotitulares","index":12,"n_rows":30,"n_cols":19,"rows_kept":30,"cut":false,"hidden":true,"merged":[[29,4,29,6],[27,7,27,14],[28,7,28,14],[29,7,29,14],[3,5,3,20],[15,0,15,20],[25,7,25,14],[27,4,27,6],[28,4,28,6],[28,16,28,17],[11,0,11,19],[12,0,12,19],[13,0,13,20],[16,0,16,16],[0,0,0,20],[4,14,4,20],[5,0,5,20],[6,0,9,20],[10,0,10,20],[4,5,4,10],[4,12,4,13],[1,0,1,20],[2,12,2,16],[2,18,2,20],[3,0,3,4]]}
[]
["UTILIZAR EN CASO DE EXISTIR 5 COTITULARES  "]
["DATOS DEL CLIENTE:",null,null,null,null,null,null,null,null,null,null,null,{"$f":"MID('Form. Apertura Caja Ahorro PN'!L2,1,35)","v":""},null,null,null,null,null,{"$f":"NOW()","v":45929.467308449071}]
["Nombre Titular 5 o Firmante:",null,null,null,null,{"$f":"IF(INSTRUCCIONES!J32=\"\",\"\",INSTRUCCIONES!J32)","v":""}]
["• Doc. Identidad y extensión: ",null,null,null,null,{"$f":"IF(INSTRUCCIONES!J33=\"\",\"\",INSTRUCCIONES!J33)","v":""},null,null,null,null,null,{"$f":"IF(INSTRUCCIONES!Q33=\"\",\"\",INSTRUCCIONES!Q33)","v":""},"Número de Cuenta:",null,{"$f":"IF(INSTRUCCIONES!Q51=\"\",\"\",INSTRUCCIONES!Q51)","v":""}]
["AUTORIZACIONES"]
["•  El (La) (Los) titular(es) o apoderado(s) y para el caso de Bisa Junior el padre, madre o tutor(es) y para el menor titular de la cuenta,  autoriza(mos) al Banco BISA S.A. a consultar en cualquier momento los datos en el Registro Único de Identificación administrado por el Servicio General de Identificación Personal (SEGIP) e instituciones y agencias de control y/o de supervisión así como de otras fuentes que estime necesarias.\n• Sólo en caso de requerir un sobregiro en cuenta corriente, el cliente autoriza al Banco a realizar la consulta en la Central de Información Crediticia (CIC) de la Autoridad de Supervisión del Sistema Financiero (ASFI), al informe confidencial del Buro de Información (BI) que corresponda.\n• Autorizo al Banco BISA S.A. y acepto que me envien información por cualquiera de los datos referenciados en esta cuenta."]
[]
[]
[]
["DILIGENCIA ADICIONAL: (Para BISA JUNIOR completar esta sección con información del padre, madre o tutor)."]
["• ¿Es portador de tarjeta verde, pasaporte norteamericano, nacido o hijo de ciudadano de los Estados Unidos de Norteamérica?"]
["• ¿Ha permanecido más de 180 días en un año o promedio de 120 días al año durante los últimos 3 años en los Estados Unidos de Norteamérica?"]
["INFORMACIÓN ADICIONAL: (Completar esta sección únicamente cuando la siguiente pregunta tenga una respuesta afirmativa)."]
["Persona Políticamente expuesta (PEPs):"]
[]
[]
[]
[]
[]
[]
[]
[]
[]
[]
[null,null,null,null,null,null,null,"Firma Titular 5 o  Firmante  "]
[]
[null,null,null,null,"Nombre completo: ",null,null,{"$f":"F4","v":""}]
[null,null,null,null,"Doc. Identidad: ",null,null,{"$f":"\"\"&L5&\" \"&F5&\" \"","v":"  "}]
[null,null,null,null,"Fecha: ",null,null,{"$f":"TODAY()","v":"2025-09-29"}]

{"sheet":"Form.PEP_Titular5","index":13,"n_rows":45,"n_cols":14,"rows_kept":45,"cut":false,"hidden":true,"merged":[[43,2,43,7],[44,2,44,7],[21,2,21,3],[21,4,21,5],[21,6,21,7],[21,8,21,9],[21,10,21,12],[44,10,44,12],[31,1,31,12],[32,1,32,12],[34,1,34,5],[34,6,34,12],[35,1,35,5],[35,6,35,12],[36,1,36,5],[36,6,36,12],[37,1,37,12],[43,10,43,12],[24,2,24,3],[24,4,24,5],[24,6,24,7],[24,8,24,9],[24,10,24,12],[22,1,22,12],[19,2,19,3],[19,4,19,5],[19,6,19,7],[19,8,19,9],[19,10,19,12],[20,2,20,3],[20,4,20,5],[20,6,20,7],[20,8,20,9],[20,10,20,12],[18,2,18,3],[18,4,18,5],[18,6,18,7],[18,8,18,9],[18,10,18,12],[17,2,17,3],[17,4,17,5],[17,6,17,7],[17,8,17,9],[17,10,17,12],[13,1,13,12],[14,2,14,3],[14,4,14,5],[14,6,14,7],[14,8,14,9],[14,10,14,12],[16,2,16,3],[16,4,16,5],[16,6,16,7],[16,8,16,9],[16,10,16,12],[15,2,15,3],[15,4,15,5],[15,6,15,7],[15,8,15,9],[15,10,15,12],[10,1,10,4],[10,5,10,8],[10,9,10,10],[10,11,10,12],[11,1,11,4],[11,5,11,8],[11,9,11,10],[11,11,11,12],[12,1,12,12],[1,1,1,12],[2,1,2,12],[3,1,3,3],[3,4,3,6],[3,7,3,9],[3,10,3,12],[9,1,9,4],[9,5,9,8],[9,9,9,10],[9,11,9,12],[4,1,4,3],[4,4,4,6],[4,7,4,9],[4,10,4,12],[5,1,5,12],[6,1,6,12],[7,1,8,4],[7,5,8,8],[7,9,7,12],[8,9,8,10],[8,11,8,12],[23,2,23,3],[23,4,23,5],[23,6,23,7],[23,8,23,9],[23,10,23,12],[26,2,26,3],[26,4,26,5],[26,6,26,7],[26,8,26,9],[26,10,26,12],[25,2,25,3],[25,4,25,5],[25,6,25,7],[25,8,25,9],[25,10,25,12],[3,13,4,13],[7,13,11,13],[12,13,21,13],[31,13,38,13],[30,2,30,3],[30,4,30,5],[30,6,30,7],[30,8,30,9],[30,10,30,12],[29,2,29,3],[29,4,29,5],[29,6,29,7],[29,8,29,9],[29,10,29,12],[28,2,28,3],[28,4,28,5],[28,6,28,7],[28,8,28,9],[28,10,28,12],[27,2,27,3],[27,4,27,5],[27,6,27,7],[27,8,27,9],[27,10,27,12]]}
[]
[null,"Estimado cliente, por favor solicitamos su valiosa colaboración con el llenado de la información contenida en este formulario. De \nacuerdo con lo establecido en el Artículo Nº 54 del Instructivo Específico para Entidades de Intermediación Financiera, todo cliente PEP (Persona Expuesta Políticamente), sus familiares o personas cercanas, deben presentar información complementaria a su entidad financiera.\nGracias",null,null,null,null,null,null,null,null,null,null,null,"INSTRUCCIONES DE LLENADO DE FORMULARIO\n\nAntes de utilizar este formulario borre datos con el \"borrador\" del lado derecho superior del formulario."]
[null,"DATOS BÁSICOS DEL CLIENTE",null,null,null,null,null,null,null,null,null,null,null,"DATOS BÁSICOS DEL CLIENTE"]
[null,"1er Apellido ",null,null,"2do Apellido ",null,null,"Nombres",null,null,"Carnet de Identidad - Ext.",null,null,"1. Registrar: El primer apellido, segundo apellido, nombre(s) y documento de identidad de la persona solicitante de la apertura de cuenta."]
[null,null,null,null,null,null,null,null,null,null,{"$f":"'Form. Apertura Caja Ahorro PN'!$F$4","v":""}]
[null,"DATOS DEL CLIENTE PEP/ALLEGADO",null,null,null,null,null,null,null,null,null,null,null,"DATOS DEL CLIENTE PEP/ALLEGADO"]
[null,"a) Datos laborales ",null,null,null,null,null,null,null,null,null,null,null,"Completar los datos laborales de la persona solicitante de la apertura de cuenta.\n"]
[null,"Institución Pública/Partido Político/Organización del Estado/ Organización Internacional/Empresa Pública",null,null,null,"Cargo que ocupa u ocupó en los últimos 5 años",null,null,null,"Periodo Ejercido ",null,null,null,"1. Registrar: \n\na) Datos laborales: nombre de la institución pública, empresa pública, partido político, organización del estado u organismo internacional en la que trabajó o trabaja actualmente, el cargo que ejerció o ejerce y el periodo de ejercicio, indicando la fecha de inicio y fin. \n\nEn caso de haber trabajado en más de una institución pública, se deben registrar las mismas en el formulario, considerando las fechas en la cual fue designado para así poder determinar si el cliente se encuentra dentro el periodo establecido para ser considerado PEP (5 años).  "]
[null,null,null,null,null,null,null,null,null,"Fecha Inicio",null,"Fecha Final"]
[null,null,null,null,null,null,null,null,null,"dd/mm/aa",null,"dd/mm/aa"]
[null,null,null,null,null,null,null,null,null,"dd/mm/aa",null,"dd/mm/aa"]
[null,null,null,null,null,null,null,null,null,"dd/mm/aa",null,"dd/mm/aa"]
[null,"b) Allegados y Personas cercanas al PEP",null,null,null,null,null,null,null,null,null,null,null,"b) Allegados, la relación de los allegados del solicitante debe ser registrada hasta el segundo grado de consanguinidad (padres, hijos, hermanos, abuelos, bisabuelos, nietos) y segundo de afinidad (cónyuge/concubino(a), suegros, cuñados), debiendo registrarse la siguiente información del allegado:\n\n  Primer apellido, segundo apellido, nombres, documento de identidad.\n  Cargo, oficio u ocupación.\n  Lugar de Trabajo.\n  Grado de parentesco. "]
[null,"Cónyuge/concubino(a), parientes hasta el segundo grado de consanguinidad y el segundo grado de afinidad. Estrechos colaboradores y Asociados"]
[null,"Datos","1er. allegado ",null,"2do. allegado",null,"3er. allegado",null,"4to. allegado",null,"5to. allegado"]
[null,"1er Apellido  "]
[null,"2do Apellido "]
[null,"Nombres"]
[null,"Número de C.I. "]
[null,"Cargo/oficio/ocupación"]
[null,"Lugar de trabajo"]
[null,"Grado de parentesco"]
[null,"En caso de ser necesario registrar más allegados, desplegar las filas correspondientes presionando el signo \"+\", que se encuentra ubicado en el costado izquierdo del formulario."]
[null,"Datos","6to. allegado ",null,"7mo. allegado",null,"8vo. allegado",null,"9no. allegado",null,"10mo. allegado"]
[null,"1er Apellido  "]
[null,"2do Apellido "]
[null,"Nombres"]
[null,"Número de C.I. "]
[null,"Cargo/oficio/ocupación"]
[null,"Lugar de trabajo"]
[null,"Grado de parentesco"]
[null,"c) Relación con empresas",null,null,null,null,null,null,null,null,null,null,null,"c) Relación con Empresa, registrar esta información cuando el solicitante tenga participación en el capital social (ser socio), aporte o funja como administrador de la empresa, debiendo en este caso registra la siguiente información:\n\n  Nombre de la Empresa.\n  Número de Identificación Tributaria NIT\n\nEste campo también debe ser llenado en caso de que el allegado familiar o persona cercana (descrito en el inciso anterior) posea además una Empresa en la cual tenga participación en el capital social, aporte o sea administrador de la misma."]
[null,"Participación en el capital social, aporte o administrador"]
[null,"Nombre de la empresa",null,null,null,null,"NIT(*)"]
[]
[]
[]
[null,"El presente formulario tiene carácter de Declaración Jurada, por tanto declaro que la información registrada en el mismo es autentica y fidedigna."]
[]
[null,null,null,null,null,null,null,null,"Lugar:",{"$f":"IF(INSTRUCCIONES!$I$80=\"\",\"\",INSTRUCCIONES!$I$80)","v":""}]
[]
[]
[]
[null,null,null,null,null,null,null,null,"Fecha:",{"$f":"TODAY()","v":"2025-09-29"}]
[null,null,"Firma"]

{"sheet":"Titular 6 y demás cotitulares","index":14,"n_rows":30,"n_cols":19,"rows_kept":30,"cut":false,"hidden":true,"merged":[[29,4,29,6],[27,7,27,14],[28,7,28,14],[29,7,29,14],[0,0,0,20],[4,14,4,20],[5,0,5,20],[6,0,9,20],[10,0,10,20],[4,5,4,10],[4,12,4,13],[1,0,1,20],[2,12,2,16],[2,18,2,20],[3,0,3,4],[3,5,3,20],[28,16,28,17],[2,0,2,11],[11,0,11,19],[12,0,12,19],[13,0,13,20],[16,0,16,16],[15,0,15,20],[25,7,25,14],[27,4,27,6],[28,4,28,6]]}
[]
["UTILIZAR EN CASO DE EXISTIR 6 COTITULARES  "]
["DATOS DEL CLIENTE:",null,null,null,null,null,null,null,null,null,null,null,{"$f":"MID('Form. Apertura Caja Ahorro PN'!L2,1,35)","v":""},null,null,null,null,null,{"$f":"NOW()","v":45929.467308449071}]
["• Nombre Titular 6 o Firmante:",null,null,null,null,{"$f":"IF(INSTRUCCIONES!J34=\"\",\"\",INSTRUCCIONES!J34)","v":""}]
["• Doc. Identidad y extensión: ",null,null,null,null,{"$f":"IF(INSTRUCCIONES!J35=\"\",\"\",INSTRUCCIONES!J35)","v":""},null,null,null,null,null,{"$f":"IF(INSTRUCCIONES!Q35=\"\",\"\",INSTRUCCIONES!Q35)","v":""},"Número de Cuenta:",null,{"$f":"IF(INSTRUCCIONES!Q51=\"\",\"\",INSTRUCCIONES!Q51)","v":""}]
["AUTORIZACIONES"]
["•  El (La) (Los) titular(es) o apoderado(s) y para el caso de Bisa Junior el padre, madre o tutor(es) y para el menor titular de la cuenta,  autoriza(mos) al Banco BISA S.A. a consultar en cualquier momento los datos en el Registro Único de Identificación administrado por el Servicio General de Identificación Personal (SEGIP) e instituciones y agencias de control y/o de supervisión así como de otras fuentes que estime necesarias.\n• Sólo en caso de requerir un sobregiro en cuenta corriente, el cliente autoriza al Banco a realizar la consulta en la Central de Información Crediticia (CIC) de la Autoridad de Supervisión del Sistema Financiero (ASFI), al informe confidencial del Buro de Información (BI) que corresponda.\n• Autorizo al Banco BISA S.A. y acepto que me envien información por cualquiera de los datos referenciados en esta cuenta."]
[]
[]
[]
["DILIGENCIA ADICIONAL: (Para BISA JUNIOR completar esta sección con información del padre, madre o tutor)."]
["• ¿Es portador de tarjeta verde, pasaporte norteamericano, nacido o hijo de ciudadano de los Estados Unidos de Norteamérica?"]
["• ¿Ha permanecido más de 180 días en un año o promedio de 120 días al año durante los últimos 3 años en los Estados Unidos de Norteamérica?"]
["INFORMACIÓN ADICIONAL SOBRE PERSONAS PEP: (Completar esta sección únicamente cuando la siguiente pregunta tenga una respuesta afirmativa)."]
["Persona Políticamente expuesta (PEPs):"]
[]
[]
[]
[]
[]
[]
[]
[]
[]
[]
[null,null,null,null,null,null,null,"Firma Titular 6 o  Firmante"]
[]
[null,null,null,null,"Nombre completo: ",null,null,{"$f":"F4","v":""}]
[null,null,null,null,"Doc. Identidad: ",null,null,{"$f":"\"\"&L5&\" \"&F5&\" \"","v":"  "}]
[null,null,null,null,"Fecha: ",null,null,{"$f":"TODAY()","v":"2025-09-29"}]

{"sheet":"Form.PEP_Titular6","index":15,"n_rows":45,"n_cols":14,"rows_kept":45,"cut":false,"hidden":true,"merged":[[43,2,43,7],[44,2,44,7],[21,2,21,3],[21,4,21,5],[21,6,21,7],[21,8,21,9],[21,10,21,12],[44,10,44,12],[31,1,31,12],[32,1,32,12],[34,1,34,5],[34,6,34,12],[35,1,35,5],[35,6,35,12],[36,1,36,5],[36,6,36,12],[37,1,37,12],[43,10,43,12],[24,2,24,3],[24,4,24,5],[24,6,24,7],[24,8,24,9],[24,10,24,12],[22,1,22,12],[19,2,19,3],[19,4,19,5],[19,6,19,7],[19,8,19,9],[19,10,19,12],[20,2,20,3],[20,4,20,5],[20,6,20,7],[20,8,20,9],[20,10,20,12],[18,2,18,3],[18,4,18,5],[18,6,18,7],[18,8,18,9],[18,10,18,12],[17,2,17,3],[17,4,17,5],[17,6,17,7],[17,8,17,9],[17,10,17,12],[13,1,13,12],[14,2,14,3],[14,4,14,5],[14,6,14,7],[14,8,14,9],[14,10,14,12],[16,2,16,3],[16,4,16,5],[16,6,16,7],[16,8,16,9],[16,10,16,12],[15,2,15,3],[15,4,15,5],[15,6,15,7],[15,8,15,9],[15,10,15,12],[10,1,10,4],[10,5,10,8],[10,9,10,10],[10,11,10,12],[11,1,11,4],[11,5,11,8],[11,9,11,10],[11,11,11,12],[12,1,12,12],[1,1,1,12],[2,1,2,12],[3,1,3,3],[3,4,3,6],[3,7,3,9],[3,10,3,12],[9,1,9,4],[9,5,9,8],[9,9,9,10],[9,11,9,12],[4,1,4,3],[4,4,4,6],[4,7,4,9],[4,10,4,12],[5,1,5,12],[6,1,6,12],[7,1,8,4],[7,5,8,8],[7,9,7,12],[8,9,8,10],[8,11,8,12],[23,2,23,3],[23,4,23,5],[23,6,23,7],[23,8,23,9],[23,10,23,12],[26,2,26,3],[26,4,26,5],[26,6,26,7],[26,8,26,9],[26,10,26,12],[25,2,25,3],[25,4,25,5],[25,6,25,7],[25,8,25,9],[25,10,25,12],[3,13,4,13],[7,13,11,13],[12,13,21,13],[31,13,38,13],[30,2,30,3],[30,4,30,5],[30,6,30,7],[30,8,30,9],[30,10,30,12],[29,2,29,3],[29,4,29,5],[29,6,29,7],[29,8,29,9],[29,10,29,12],[28,2,28,3],[28,4,28,5],[28,6,28,7],[28,8,28,9],[28,10,28,12],[27,2,27,3],[27,4,27,5],[27,6,27,7],[27,8,27,9],[27,10,27,12]]}
[]
[null,"Estimado cliente, por favor solicitamos su valiosa colaboración con el llenado de la información contenida en este formulario. De \nacuerdo con lo establecido en el Artículo Nº 54 del Instructivo Específico para Entidades de Intermediación Financiera, todo cliente PEP (Persona Expuesta Políticamente), sus familiares o personas cercanas, deben presentar información complementaria a su entidad financiera.\nGracias",null,null,null,null,null,null,null,null,null,null,null,"INSTRUCCIONES DE LLENADO DE FORMULARIO\n\nAntes de utilizar este formulario borre datos con el \"borrador\" del lado derecho superior del formulario."]
[null,"DATOS BÁSICOS DEL CLIENTE",null,null,null,null,null,null,null,null,null,null,null,"DATOS BÁSICOS DEL CLIENTE"]
[null,"1er Apellido ",null,null,"2do Apellido ",null,null,"Nombres",null,null,"Carnet de Identidad - Ext.",null,null,"1. Registrar: El primer apellido, segundo apellido, nombre(s) y documento de identidad de la persona solicitante de la apertura de cuenta."]
[null,null,null,null,null,null,null,null,null,null,{"$f":"'Form. Apertura Caja Ahorro PN'!$F$4","v":""}]
[null,"DATOS DEL CLIENTE PEP/ALLEGADO",null,null,null,null,null,null,null,null,null,null,null,"DATOS DEL CLIENTE PEP/ALLEGADO"]
[null,"a) Datos laborales ",null,null,null,null,null,null,null,null,null,null,null,"Completar los datos laborales de la persona solicitante de la apertura de cuenta.\n"]
[null,"Institución Pública/Partido Político/Organización del Estado/ Organización Internacional/Empresa Pública",null,null,null,"Cargo que ocupa u ocupó en los últimos 5 años",null,null,null,"Periodo Ejercido ",null,null,null,"1. Registrar: \n\na) Datos laborales: nombre de la institución pública, empresa pública, partido político, organización del estado u organismo internacional en la que trabajó o trabaja actualmente, el cargo que ejerció o ejerce y el periodo de ejercicio, indicando la fecha de inicio y fin. \n\nEn caso de haber trabajado en más de una institución pública, se deben registrar las mismas en el formulario, considerando las fechas en la cual fue designado para así poder determinar si el cliente se encuentra dentro el periodo establecido para ser considerado PEP (5 años).  "]
[null,null,null,null,null,null,null,null,null,"Fecha Inicio",null,"Fecha Final"]
[null,null,null,null,null,null,null,null,null,"dd/mm/aa",null,"dd/mm/aa"]
[null,null,null,null,null,null,null,null,null,"dd/mm/aa",null,"dd/mm/aa"]
[null,null,null,null,null,null,null,null,null,"dd/mm/aa",null,"dd/mm/aa"]
[null,"b) Allegados y Personas cercanas al PEP",null,null,null,null,null,null,null,null,null,null,null,"b) Allegados, la relación de los allegados del solicitante debe ser registrada hasta el segundo grado de consanguinidad (padres, hijos, hermanos, abuelos, bisabuelos, nietos) y segundo de afinidad (cónyuge/concubino(a), suegros, cuñados), debiendo registrarse la siguiente información del allegado:\n\n  Primer apellido, segundo apellido, nombres, documento de identidad.\n  Cargo, oficio u ocupación.\n  Lugar de Trabajo.\n  Grado de parentesco. "]
[null,"Cónyuge/concubino(a), parientes hasta el segundo grado de consanguinidad y el segundo grado de afinidad. Estrechos colaboradores y Asociados"]
[null,"Datos","1er. allegado ",null,"2do. allegado",null,"3er. allegado",null,"4to. allegado",null,"5to. allegado"]
[null,"1er Apellido  "]
[null,"2do Apellido "]
[null,"Nombres"]
[null,"Número de C.I. "]
[null,"Cargo/oficio/ocupación"]
[null,"Lugar de trabajo"]
[null,"Grado de parentesco"]
[null,"En caso de ser necesario registrar más allegados, desplegar las filas correspondientes presionando el signo \"+\", que se encuentra ubicado en el costado izquierdo del formulario."]
[null,"Datos","6to. allegado ",null,"7mo. allegado",null,"8vo. allegado",null,"9no. allegado",null,"10mo. allegado"]
[null,"1er Apellido  "]
[null,"2do Apellido "]
[null,"Nombres"]
[null,"Número de C.I. "]
[null,"Cargo/oficio/ocupación"]
[null,"Lugar de trabajo"]
[null,"Grado de parentesco"]
[null,"c) Relación con empresas",null,null,null,null,null,null,null,null,null,null,null,"c) Relación con Empresa, registrar esta información cuando el solicitante tenga participación en el capital social (ser socio), aporte o funja como administrador de la empresa, debiendo en este caso registra la siguiente información:\n\n  Nombre de la Empresa.\n  Número de Identificación Tributaria NIT\n\nEste campo también debe ser llenado en caso de que el allegado familiar o persona cercana (descrito en el inciso anterior) posea además una Empresa en la cual tenga participación en el capital social, aporte o sea administrador de la misma."]
[null,"Participación en el capital social, aporte o administrador"]
[null,"Nombre de la empresa",null,null,null,null,"NIT(*)"]
[]
[]
[]
[null,"El presente formulario tiene carácter de Declaración Jurada, por tanto declaro que la información registrada en el mismo es autentica y fidedigna."]
[]
[null,null,null,null,null,null,null,null,"Lugar:",{"$f":"IF(INSTRUCCIONES!$I$80=\"\",\"\",INSTRUCCIONES!$I$80)","v":""}]
[]
[]
[]
[null,null,null,null,null,null,null,null,"Fecha:",{"$f":"TODAY()","v":"2025-09-29"}]
[null,null,"Firma"]